Workbook

Sheet 流出係数算出
I1: 行為前Σan | J1: 行為後Σan
E2: 流出係数算定結果 | G2: 行為前 | H2: 行為後 | I2: =SUM($G$9:$G$95) -> 7.4 | J2: =SUM($H$9:$H$95) -> 7.4
G3: =$I$4/$I$2 -> 0.2 | H3: =$J$4/$J$2 -> 0.9 | I3: 行為前Σ(fn*an) | J3: 行為後Σ(fn*an)
I4: =SUM($I$9:$I$95) -> 1.48 | J4: =SUM($J$9:$J$95) -> 6.66
B5: 雨水浸透阻害行為の技術基準として設定する流出係数
B7: 区分 | E7: 土地利用の形態の細区分 | F7: 流出係数 | G7: 行為前面積 （ha） | H7: 行為後面積 （ha）
B8: 計 | F8: － | G8: =SUM(G9:G31) -> 7.4 | H8: =SUM(H9:H31) -> 7.4
B9: 宅地等に該当する土地 | C9: 第１号関連 | E9: 宅地 | F9: 0.9 | H9: 7.4 | I9: =$F9*$G9 -> 0 | J9: =$F9*$H9 -> 6.66
E10: 池沼 | F10: 1 | I10: 0 | J10: 0
E11: 水路 | F11: 1 | I11: 0 | J11: 0
E12: ため池 | F12: 1 | I12: 0 | J12: 0
E13: 道路(法面を有しないもの） | F13: 0.9 | I13: 0 | J13: 0
E14: 道路（法面を有するもの） | I14: 0 | J14: 0
E15: 鉄道線路（法面を有しないもの） | F15: 0.9 | I15: 0 | J15: 0
E16: 鉄道線路（法面を有するもの） | I16: 0 | J16: 0
E17: 飛行場（法面を有しないもの） | F17: 0.9 | I17: 0 | J17: 0
E18: 飛行場（法面を有するもの） | I18: 0 | J18: 0
B19: 宅地等以外の土地 | C19: 第２号 関 連 | E19: 不浸透性材料により舗装された土地（法面を除く） | F19: 0.95 | I19: 0 | J19: 0
E20: 不浸透性材料により覆われた法面 | F20: 1 | I20: 0 | J20: 0
C21: 第３号 関 連 | E21: ゴルフ場（雨水を排除するための排水施設を伴うものに限る） | F21: 0.5 | I21: 0 | J21: 0
E22: 運動場その他これに類する施設（雨水を排除するための排水施設を伴うものに限る） | F22: 0.8 | I22: 0 | J22: 0
E23: ローラーその他これに類する建設機械を用いて締め固められた土地 | F23: 0.5 | I23: 0 | J23: 0
C24: 上記第１号から第３号に掲げる土地以外の土地 | E24: 山地 | F24: 0.3 | I24: 0 | J24: 0
E25: 人工的に造成され植生に覆われた法面 | F25: 0.4 | I25: 0 | J25: 0
E26: 林地、耕地、原野その他ローラーその他これに類する建設機械を用いて締め固められていない土地 | F26: 0.2 | G26: 7.4 | I26: =$F26*$G26 -> 1.48 | J26: 0
B27: そ の 他 | I27: 0 | J27: 0
I28: 0 | J28: 0
I29: 0 | J29: 0
I30: 0 | J30: 0
I31: 0 | J31: 0

Sheet 降雨強度
A1: ※降雨は対象地域の降雨に変更して下さい
A2: 時 | B2: 分 | C2: 降雨量 （mm/h） | D2: 時 | E2: 分 | F2: 降雨量 （mm/h） | G2: 時 | H2: 分 | I2: 降雨量 （mm/h） | J2: 時 | K2: 分 | L2: 降雨量 （mm/h）
A3: 0 | B3: 0－10 | C3: 2.988368593 | D3: 6 | E3: 0－10 | F3: 4.891721935 | G3: 12 | H3: 0－10 | I3: 59.86120636 | J3: 18 | K3: 0－10 | L3: 4.750389784
B4: 10－20 | C4: 3.017941819 | E4: 10－20 | F4: 4.991815276 | H4: 10－20 | I4: 37.68462464 | K4: 10－20 | L4: 4.661545422
B5: 20－30 | C5: 3.048244747 | E5: 20－30 | F5: 5.097051426 | H5: 20－30 | I5: 28.50676021 | K5: 20－30 | L5: 4.57664965
B6: 30－40 | C6: 3.079306381 | E6: 30－40 | F6: 5.207861164 | H6: 30－40 | I6: 23.29999862 | K6: 30－40 | L6: 4.495431729
B7: 40－50 | C7: 3.111157327 | E7: 40－50 | F7: 5.324726097 | H7: 40－50 | I7: 19.89290529 | K7: 40－50 | L7: 4.417645661
B8: 50－60 | C8: 3.143829907 | E8: 50－60 | F8: 5.448186503 | H8: 50－60 | I8: 17.46821877 | K8: 50－60 | L8: 4.34306739
A9: 1 | B9: 0－10 | C9: 3.17735828 | D9: 7 | E9: 0－10 | F9: 5.578850693 | G9: 13 | H9: 0－10 | I9: 15.6436734 | J9: 19 | K9: 0－10 | L9: 4.271492381
B10: 10－20 | C10: 3.211778577 | E10: 10－20 | F10: 5.717406233 | H10: 10－20 | I10: 14.21481043 | K10: 10－20 | L10: 4.20273351
B11: 20－30 | C11: 3.247129054 | E11: 20－30 | F11: 5.864633502 | H11: 20－30 | I11: 13.06169678 | K11: 20－30 | L11: 4.136619232
B12: 30－40 | C12: 3.283450243 | E12: 30－40 | F12: 6.021422144 | H12: 30－40 | I12: 12.10903938 | K12: 30－40 | L12: 4.07299197
B13: 40－50 | C13: 3.320785134 | E13: 40－50 | F13: 6.188791199 | H13: 40－50 | I13: 11.30703631 | K13: 40－50 | L13: 4.011706705
B14: 50－60 | C14: 3.359179364 | E14: 50－60 | F14: 6.367913897 | H14: 50－60 | I14: 10.62135102 | K14: 50－60 | L14: 3.952629735
A15: 2 | B15: 0－10 | C15: 3.398681429 | D15: 8 | E15: 0－10 | F15: 6.560148442 | G15: 14 | H15: 0－10 | I15: 10.02749558 | J15: 20 | K15: 0－10 | L15: 3.895637575
B16: 10－20 | C16: 3.439342912 | E16: 10－20 | F16: 6.76707656 | H16: 10－20 | I16: 9.507507899 | K16: 10－20 | L16: 3.840615992
B17: 20－30 | C17: 3.481218742 | E17: 20－30 | F17: 6.990552207 | H17: 20－30 | I17: 9.047895944 | K17: 20－30 | L17: 3.78745914
B18: 30－40 | C18: 3.524367466 | E18: 30－40 | F18: 7.232763745 | H18: 30－40 | I18: 8.638316976 | K18: 30－40 | L18: 3.736068795
B19: 40－50 | C19: 3.568851565 | E19: 40－50 | F19: 7.496314151 | H19: 40－50 | I19: 8.270701431 | K19: 40－50 | L19: 3.686353673
B20: 50－60 | C20: 3.61473779 | E20: 50－60 | F20: 7.784325751 | H20: 50－60 | I20: 7.938655429 | K20: 50－60 | L20: 3.638228819
A21: 3 | B21: 0－10 | C21: 3.66209754 | D21: 9 | E21: 0－10 | F21: 8.100578741 | G21: 15 | H21: 0－10 | I21: 7.637043365 | J21: 21 | K21: 0－10 | L21: 3.591615063
B22: 10－20 | C22: 3.711007282 | E22: 10－20 | F22: 8.449697074 | H22: 10－20 | I22: 7.361690047 | K22: 10－20 | L22: 3.546438526
B23: 20－30 | C23: 3.761549015 | E23: 20－30 | F23: 8.837401892 | H23: 20－30 | I23: 7.10916411 | K23: 20－30 | L23: 3.502630183
B24: 30－40 | C24: 3.813810784 | E24: 30－40 | F24: 9.270863249 | H24: 30－40 | I24: 6.876617846 | K24: 30－40 | L24: 3.460125463
B25: 40－50 | C25: 3.867887264 | E25: 40－50 | F25: 9.759198105 | H25: 40－50 | I25: 6.661666966 | K25: 40－50 | L25: 3.418863892
B26: 50－60 | C26: 3.923880399 | E26: 50－60 | F26: 10.31419152 | H26: 50－60 | I26: 6.462299084 | K26: 50－60 | L26: 3.378788768
A27: 4 | B27: 0－10 | C27: 3.981900128 | D27: 10 | E27: 0－10 | F27: 10.95136836 | G27: 16 | H27: 0－10 | I27: 6.276803199 | J27: 22 | K27: 0－10 | L27: 3.33984687
B28: 10－20 | C28: 4.042065196 | E28: 10－20 | F28: 11.69163401 | H28: 10－20 | I28: 6.103714735 | K28: 10－20 | L28: 3.301988188
B29: 20－30 | C29: 4.104504066 | E29: 20－30 | F29: 12.56387462 | H29: 20－30 | I29: 5.941772259 | K29: 20－30 | L29: 3.265165682
B30: 30－40 | C30: 4.169355955 | E30: 30－40 | F30: 13.60925079 | H30: 30－40 | I30: 5.789883076 | K30: 30－40 | L30: 3.229335065
B31: 40－50 | C31: 4.236771995 | E31: 40－50 | F31: 14.88864543 | H31: 40－50 | I31: 5.647095623 | K31: 40－50 | L31: 3.194454598
B32: 50－60 | C32: 4.306916559 | E32: 50－60 | F32: 16.49638883 | H32: 50－60 | I32: 5.512577156 | K32: 50－60 | L32: 3.160484909
A33: 5 | B33: 0－10 | C33: 4.379968766 | D33: 11 | E33: 0－10 | F33: 18.58755585 | G33: 17 | H33: 0－10 | I33: 5.385595562 | J33: 23 | K33: 0－10 | L33: 3.127388823
B34: 10－20 | C34: 4.456124201 | E34: 10－20 | F34: 21.43794089 | H34: 10－20 | I34: 5.26550444 | K34: 10－20 | L34: 3.095131212
B35: 20－30 | C35: 4.535596878 | E35: 20－30 | F35: 25.59514149 | H35: 20－30 | I35: 5.151730773 | K35: 20－30 | L35: 3.063678851
B36: 30－40 | C36: 4.618621499 | E36: 30－40 | F36: 32.344867 | H36: 30－40 | I36: 5.043764685 | K36: 30－40 | L36: 3.033000294
B37: 40－50 | C37: 4.705456057 | E37: 40－50 | F37: 45.75180983 | H37: 40－50 | I37: 4.941150881 | K37: 40－50 | L37: 3.003065747
B38: 50－60 | C38: 4.796384842 | E38: 50－60 | F38: 97.349877 | H38: 50－60 | I38: 4.843481449 | K38: 50－60 | L38: 2.973846967

Sheet 流入量定義
A1: ※流出計算を実行する場合、記入する必要はありません。
A2: 時刻 | B2: 行為後流入量
A3: 00:00:00
A4: 00:10:00
A5: 00:20:00
A6: 00:30:00
A7: 00:40:00
A8: 00:50:00
A9: 01:00:00
A10: 01:10:00
A11: 01:20:00
A12: 01:30:00
A13: 01:40:00
A14: 01:50:00
A15: 02:00:00
A16: 02:10:00
A17: 02:20:00
A18: 02:30:00
A19: 02:40:00
A20: 02:50:00
A21: 03:00:00
A22: 03:10:00
A23: 03:20:00
A24: 03:30:00
A25: 03:40:00
A26: 03:50:00
A27: 04:00:00
A28: 04:10:00
A29: 04:20:00
A30: 04:30:00
A31: 04:40:00
A32: 04:50:00
A33: 05:00:00
A34: 05:10:00
A35: 05:20:00
A36: 05:30:00
A37: 05:40:00
A38: 05:50:00
A39: 06:00:00
A40: 06:10:00
A41: 06:20:00
A42: 06:30:00
A43: 06:40:00
A44: 06:50:00
A45: 07:00:00
A46: 07:10:00
A47: 07:20:00
A48: 07:30:00
A49: 07:40:00
A50: 07:50:00
A51: 08:00:00
A52: 08:10:00
A53: 08:20:00
A54: 08:30:00
A55: 08:40:00
A56: 08:50:00
A57: 09:00:00
A58: 09:10:00
A59: 09:20:00
A60: 09:30:00
A61: 09:40:00
A62: 09:50:00
A63: 10:00:00
A64: 10:10:00
A65: 10:20:00
A66: 10:30:00
A67: 10:40:00
A68: 10:50:00
A69: 11:00:00
A70: 11:10:00
A71: 11:20:00
A72: 11:30:00
A73: 11:40:00
A74: 11:50:00
A75: 12:00:00
A76: 12:10:00
A77: 12:20:00
A78: 12:30:00
A79: 12:40:00
A80: 12:50:00
A81: 13:00:00
A82: 13:10:00
A83: 13:20:00
A84: 13:30:00
A85: 13:40:00
A86: 13:50:00
A87: 14:00:00
A88: 14:10:00
A89: 14:20:00
A90: 14:30:00
A91: 14:40:00
A92: 14:50:00
A93: 15:00:00
A94: 15:10:00
A95: 15:20:00
A96: 15:30:00
A97: 15:40:00
A98: 15:50:00
A99: 16:00:00
A100: 16:10:00
A101: 16:20:00
A102: 16:30:00
A103: 16:40:00
A104: 16:50:00
A105: 17:00:00
A106: 17:10:00
A107: 17:20:00
A108: 17:30:00
A109: 17:40:00
A110: 17:50:00
A111: 18:00:00
A112: 18:10:00
A113: 18:20:00
A114: 18:30:00
A115: 18:40:00
A116: 18:50:00
A117: 19:00:00
A118: 19:10:00
A119: 19:20:00
A120: 19:30:00
A121: 19:40:00
A122: 19:50:00
A123: 20:00:00
A124: 20:10:00
A125: 20:20:00
A126: 20:30:00
A127: 20:40:00
A128: 20:50:00
A129: 21:00:00
A130: 21:10:00
A131: 21:20:00
A132: 21:30:00
A133: 21:40:00
A134: 21:50:00
A135: 22:00:00
A136: 22:10:00
A137: 22:20:00
A138: 22:30:00
A139: 22:40:00
A140: 22:50:00
A141: 23:00:00
A142: 23:10:00
A143: 23:20:00
A144: 23:30:00
A145: 23:40:00
A146: 23:50:00
A147: 24:00

Sheet 01流出計算（Q-Tグラフ）
B2: 流 出 計 算 条 件 | H2: 流 出 計 算 結 果
H4: 時刻 | I4: 行為前流入量 | J4: 行為後流入量 | K4: 降雨強度
B5: 1 | C5: 流出計算の実行 | H5: 00:00:00 | I5: 0 | J5: 0
H6: 00:10:00 | I6: 0.01229 | J6: 0.05528 | K6: 2.988368593
C7: 行為面積 | D7: =流出係数算出!$H$8 -> 7.4 | E7: ha | H7: 00:20:00 | I7: 0.01241 | J7: 0.05583 | K7: 3.017941819
H8: 00:30:00 | I8: 0.01253 | J8: 0.05639 | K8: 3.048244747
C9: 降雨量 | H9: 00:40:00 | I9: 0.01266 | J9: 0.05697 | K9: 3.079306381
C10: ※「降雨強度」シートに基準降雨を入力してください。（都道府県知事等により公示されている「基準降雨」の値に変更してください。） | H10: 00:50:00 | I10: 0.01279 | J10: 0.05756 | K10: 3.111157327
H11: 01:00:00 | I11: 0.01292 | J11: 0.05816 | K11: 3.143829907
H12: 01:10:00 | I12: 0.01306 | J12: 0.05878 | K12: 3.17735828
H13: 01:20:00 | I13: 0.0132 | J13: 0.05942 | K13: 3.211778577
H14: 01:30:00 | I14: 0.01335 | J14: 0.06007 | K14: 3.247129054
C15: 流出係数 | H15: 01:40:00 | I15: 0.0135 | J15: 0.06074 | K15: 3.283450243
C16: 行為前 | D16: 0.2 | H16: 01:50:00 | I16: 0.01365 | J16: 0.06143 | K16: 3.320785134
C17: 行為後 | D17: 0.9 | H17: 02:00:00 | I17: 0.01381 | J17: 0.06214 | K17: 3.359179364
C18: ※「流出係数算出」シートで算出した諸元が入力されていますが、必要に応じて申請図書記載値に上書きすることができます。 | H18: 02:10:00 | I18: 0.01397 | J18: 0.06288 | K18: 3.398681429
H19: 02:20:00 | I19: 0.01414 | J19: 0.06363 | K19: 3.439342912
H20: 02:30:00 | I20: 0.01431 | J20: 0.0644 | K20: 3.481218742
C21: 流出計算結果の指定 | H21: 02:40:00 | I21: 0.01449 | J21: 0.0652 | K21: 3.524367466
H22: 02:50:00 | I22: 0.01467 | J22: 0.06602 | K22: 3.568851565
C23: ※「流入量定義」シートに計算された流出計算結果（行為後）を入力してください。 | H23: 03:00:00 | I23: 0.01486 | J23: 0.06687 | K23: 3.61473779
H24: 03:10:00 | I24: 0.01506 | J24: 0.06775 | K24: 3.66209754
H25: 03:20:00 | I25: 0.01526 | J25: 0.06865 | K25: 3.711007282
H26: 03:30:00 | I26: 0.01546 | J26: 0.06959 | K26: 3.761549015
C27: 許容放流量 | D27: 0.01 | E27: m3/s | H27: 03:40:00 | I27: 0.01568 | J27: 0.07056 | K27: 3.813810784
H28: 03:50:00 | I28: 0.0159 | J28: 0.07156 | K28: 3.867887264
H29: 04:00:00 | I29: 0.01613 | J29: 0.07259 | K29: 3.923880399
H30: 04:10:00 | I30: 0.01637 | J30: 0.07367 | K30: 3.981900128
H31: 04:20:00 | I31: 0.01662 | J31: 0.07478 | K31: 4.042065196
H32: 04:30:00 | I32: 0.01687 | J32: 0.07593 | K32: 4.104504066
H33: 04:40:00 | I33: 0.01714 | J33: 0.07713 | K33: 4.169355955
H34: 04:50:00 | I34: 0.01742 | J34: 0.07838 | K34: 4.236771995
H35: 05:00:00 | I35: 0.01771 | J35: 0.07968 | K35: 4.306916559
H36: 05:10:00 | I36: 0.01801 | J36: 0.08103 | K36: 4.379968766
H37: 05:20:00 | I37: 0.01832 | J37: 0.08244 | K37: 4.456124201
H38: 05:30:00 | I38: 0.01865 | J38: 0.08391 | K38: 4.535596878
H39: 05:40:00 | I39: 0.01899 | J39: 0.08544 | K39: 4.618621499
H40: 05:50:00 | I40: 0.01934 | J40: 0.08705 | K40: 4.705456057
H41: 06:00:00 | I41: 0.01972 | J41: 0.08873 | K41: 4.796384842
H42: 06:10:00 | I42: 0.02011 | J42: 0.0905 | K42: 4.891721935
H43: 06:20:00 | I43: 0.02052 | J43: 0.09235 | K43: 4.991815276
H44: 06:30:00 | I44: 0.02095 | J44: 0.0943 | K44: 5.097051426
H45: 06:40:00 | I45: 0.02141 | J45: 0.09635 | K45: 5.207861164
H46: 06:50:00 | I46: 0.02189 | J46: 0.09851 | K46: 5.324726097
H47: 07:00:00 | I47: 0.0224 | J47: 0.10079 | K47: 5.448186503
H48: 07:10:00 | I48: 0.02294 | J48: 0.10321 | K48: 5.578850693
H49: 07:20:00 | I49: 0.0235 | J49: 0.10577 | K49: 5.717406233
H50: 07:30:00 | I50: 0.02411 | J50: 0.1085 | K50: 5.864633502
H51: 07:40:00 | I51: 0.02475 | J51: 0.1114 | K51: 6.021422144
H52: 07:50:00 | I52: 0.02544 | J52: 0.11449 | K52: 6.188791199
H53: 08:00:00 | I53: 0.02618 | J53: 0.11781 | K53: 6.367913897
H54: 08:10:00 | I54: 0.02697 | J54: 0.12136 | K54: 6.560148442
H55: 08:20:00 | I55: 0.02782 | J55: 0.12519 | K55: 6.76707656
H56: 08:30:00 | I56: 0.02874 | J56: 0.12933 | K56: 6.990552207
H57: 08:40:00 | I57: 0.02973 | J57: 0.13381 | K57: 7.232763745
H58: 08:50:00 | I58: 0.03082 | J58: 0.13868 | K58: 7.496314151
H59: 09:00:00 | I59: 0.032 | J59: 0.14401 | K59: 7.784325751
H60: 09:10:00 | I60: 0.0333 | J60: 0.14986 | K60: 8.100578741
H61: 09:20:00 | I61: 0.03474 | J61: 0.15632 | K61: 8.449697074
H62: 09:30:00 | I62: 0.03633 | J62: 0.16349 | K62: 8.837401892
H63: 09:40:00 | I63: 0.03811 | J63: 0.17151 | K63: 9.270863249
H64: 09:50:00 | I64: 0.04012 | J64: 0.18055 | K64: 9.759198105
H65: 10:00:00 | I65: 0.0424 | J65: 0.19081 | K65: 10.31419152
H66: 10:10:00 | I66: 0.04502 | J66: 0.2026 | K66: 10.95136836
H67: 10:20:00 | I67: 0.04807 | J67: 0.2163 | K67: 11.69163401
H68: 10:30:00 | I68: 0.05165 | J68: 0.23243 | K68: 12.56387462
H69: 10:40:00 | I69: 0.05595 | J69: 0.25177 | K69: 13.60925079
H70: 10:50:00 | I70: 0.06121 | J70: 0.27544 | K70: 14.88864543
H71: 11:00:00 | I71: 0.06782 | J71: 0.30518 | K71: 16.49638883
H72: 11:10:00 | I72: 0.07642 | J72: 0.34387 | K72: 18.58755585
H73: 11:20:00 | I73: 0.08813 | J73: 0.3966 | K73: 21.43794089
H74: 11:30:00 | I74: 0.10522 | J74: 0.47351 | K74: 25.59514149
H75: 11:40:00 | I75: 0.13297 | J75: 0.59838 | K75: 32.344867
H76: 11:50:00 | I76: 0.18809 | J76: 0.84641 | K76: 45.75180983
H77: 12:00:00 | I77: 0.40022 | J77: 1.80097 | K77: 97.349877
H78: 12:10:00 | I78: 0.2461 | J78: 1.10743 | K78: 59.86120636
H79: 12:20:00 | I79: 0.15493 | J79: 0.69717 | K79: 37.68462464
H80: 12:30:00 | I80: 0.11719 | J80: 0.52738 | K80: 28.50676021
H81: 12:40:00 | I81: 0.09579 | J81: 0.43105 | K81: 23.29999862
H82: 12:50:00 | I82: 0.08178 | J82: 0.36802 | K82: 19.89290529
H83: 13:00:00 | I83: 0.07181 | J83: 0.32316 | K83: 17.46821877
H84: 13:10:00 | I84: 0.06431 | J84: 0.28941 | K84: 15.6436734
H85: 13:20:00 | I85: 0.05844 | J85: 0.26297 | K85: 14.21481043
H86: 13:30:00 | I86: 0.0537 | J86: 0.24164 | K86: 13.06169678
H87: 13:40:00 | I87: 0.04978 | J87: 0.22402 | K87: 12.10903938
H88: 13:50:00 | I88: 0.04648 | J88: 0.20918 | K88: 11.30703631
H89: 14:00:00 | I89: 0.04367 | J89: 0.19649 | K89: 10.62135102
H90: 14:10:00 | I90: 0.04122 | J90: 0.18551 | K90: 10.02749558
H91: 14:20:00 | I91: 0.03909 | J91: 0.17589 | K91: 9.507507899
H92: 14:30:00 | I92: 0.0372 | J92: 0.16739 | K92: 9.047895944
H93: 14:40:00 | I93: 0.03551 | J93: 0.15981 | K93: 8.638316976
H94: 14:50:00 | I94: 0.034 | J94: 0.15301 | K94: 8.270701431
H95: 15:00:00 | I95: 0.03264 | J95: 0.14687 | K95: 7.938655429
H96: 15:10:00 | I96: 0.0314 | J96: 0.14129 | K96: 7.637043365
H97: 15:20:00 | I97: 0.03026 | J97: 0.13619 | K97: 7.361690047
H98: 15:30:00 | I98: 0.02923 | J98: 0.13152 | K98: 7.10916411
H99: 15:40:00 | I99: 0.02827 | J99: 0.12722 | K99: 6.876617846
H100: 15:50:00 | I100: 0.02739 | J100: 0.12324 | K100: 6.661666966
H101: 16:00:00 | I101: 0.02657 | J101: 0.11955 | K101: 6.462299084
H102: 16:10:00 | I102: 0.0258 | J102: 0.11612 | K102: 6.276803199
H103: 16:20:00 | I103: 0.02509 | J103: 0.11292 | K103: 6.103714735
H104: 16:30:00 | I104: 0.02443 | J104: 0.10992 | K104: 5.941772259
H105: 16:40:00 | I105: 0.0238 | J105: 0.10711 | K105: 5.789883076
H106: 16:50:00 | I106: 0.02322 | J106: 0.10447 | K106: 5.647095623
H107: 17:00:00 | I107: 0.02266 | J107: 0.10198 | K107: 5.512577156
H108: 17:10:00 | I108: 0.02214 | J108: 0.09963 | K108: 5.385595562
H109: 17:20:00 | I109: 0.02165 | J109: 0.09741 | K109: 5.26550444
H110: 17:30:00 | I110: 0.02118 | J110: 0.09531 | K110: 5.151730773
H111: 17:40:00 | I111: 0.02074 | J111: 0.09331 | K111: 5.043764685
H112: 17:50:00 | I112: 0.02031 | J112: 0.09141 | K112: 4.941150881
H113: 18:00:00 | I113: 0.01991 | J113: 0.0896 | K113: 4.843481449
H114: 18:10:00 | I114: 0.01953 | J114: 0.08788 | K114: 4.750389784
H115: 18:20:00 | I115: 0.01916 | J115: 0.08624 | K115: 4.661545422
H116: 18:30:00 | I116: 0.01882 | J116: 0.08467 | K116: 4.57664965
H117: 18:40:00 | I117: 0.01848 | J117: 0.08317 | K117: 4.495431729
H118: 18:50:00 | I118: 0.01816 | J118: 0.08173 | K118: 4.417645661
H119: 19:00:00 | I119: 0.01785 | J119: 0.08035 | K119: 4.34306739
H120: 19:10:00 | I120: 0.01756 | J120: 0.07902 | K120: 4.271492381
H121: 19:20:00 | I121: 0.01728 | J121: 0.07775 | K121: 4.20273351
H122: 19:30:00 | I122: 0.01701 | J122: 0.07653 | K122: 4.136619232
H123: 19:40:00 | I123: 0.01674 | J123: 0.07535 | K123: 4.07299197
H124: 19:50:00 | I124: 0.01649 | J124: 0.07422 | K124: 4.011706705
H125: 20:00:00 | I125: 0.01625 | J125: 0.07312 | K125: 3.952629735
H126: 20:10:00 | I126: 0.01602 | J126: 0.07207 | K126: 3.895637575
H127: 20:20:00 | I127: 0.01579 | J127: 0.07105 | K127: 3.840615992
H128: 20:30:00 | I128: 0.01557 | J128: 0.07007 | K128: 3.78745914
H129: 20:40:00 | I129: 0.01536 | J129: 0.06912 | K129: 3.736068795
H130: 20:50:00 | I130: 0.01516 | J130: 0.0682 | K130: 3.686353673
H131: 21:00:00 | I131: 0.01496 | J131: 0.06731 | K131: 3.638228819
H132: 21:10:00 | I132: 0.01477 | J132: 0.06644 | K132: 3.591615063
H133: 21:20:00 | I133: 0.01458 | J133: 0.06561 | K133: 3.546438526
H134: 21:30:00 | I134: 0.0144 | J134: 0.0648 | K134: 3.502630183
H135: 21:40:00 | I135: 0.01422 | J135: 0.06401 | K135: 3.460125463
H136: 21:50:00 | I136: 0.01406 | J136: 0.06325 | K136: 3.418863892
H137: 22:00:00 | I137: 0.01389 | J137: 0.06251 | K137: 3.378788768
H138: 22:10:00 | I138: 0.01373 | J138: 0.06179 | K138: 3.33984687
H139: 22:20:00 | I139: 0.01357 | J139: 0.06109 | K139: 3.301988188
H140: 22:30:00 | I140: 0.01342 | J140: 0.06041 | K140: 3.265165682
H141: 22:40:00 | I141: 0.01328 | J141: 0.05974 | K141: 3.229335065
H142: 22:50:00 | I142: 0.01313 | J142: 0.0591 | K142: 3.194454598
H143: 23:00:00 | I143: 0.01299 | J143: 0.05847 | K143: 3.160484909
H144: 23:10:00 | I144: 0.01286 | J144: 0.05786 | K144: 3.127388823
H145: 23:20:00 | I145: 0.01272 | J145: 0.05726 | K145: 3.095131212
H146: 23:30:00 | I146: 0.0126 | J146: 0.05668 | K146: 3.063678851
H147: 23:40:00 | I147: 0.01247 | J147: 0.05611 | K147: 3.033000294
H148: 23:50:00 | I148: 0.01235 | J148: 0.05556 | K148: 3.003065747
H149: 1 | I149: 0.01223 | J149: 0.05502 | K149: 2.973846967

Sheet 浸透施設能力
B2: 浸透施設能力算定結果 | M2: 空隙貯留量算定結果
B3: 浸透マス | C3: 浸透トレンチ | E3: 透水性舗装 | F3: その他 | G3: 浸透施設能力算定結果 | M3: 浸透マス | N3: 浸透トレンチ | P3: 透水性舗装 | Q3: その他 | R3: 空隙貯留量算定結果
B4: =SUM(I11:J20) -> 0 | C4: =SUM(J25:J34) -> 0 | E4: =SUM(J39:J48) -> 46.692 | F4: =SUM(J53:J62) -> 0 | G4: =B4+C4+E4+F4 -> 46.692 | H4: ｍ3/ｈｒ | M4: =SUM(K11:K20)/100 -> 0 | N4: =SUM(K25:K34)/100 -> 0 | P4: =SUM(K39:K48)/100 -> 0 | Q4: =SUM(K53:K62)/100 -> 0 | R4: =M4+N4+P4+Q4 -> 0 | S4: ｍ3
G5: =G4/3600 -> 0.01297 | H5: ｍ3/s
B7: 条件設定 | M7: 条件設定
B8: 【浸透マス】 | C8: 単位設計浸透能（ｍ3/ｈｒ/個） | E8: 設置数量 （個） | F8: 影響係数 | M8: 【浸透マス】 | N8: 体積 （ｍ3） | O8: 空隙率 （％）
C9: 比浸透量（㎡） | D9: 飽和透水係数 （m/hr） | F9: （1） | G9: （2） | H9: （3）
F10: 内容（１） | G10: 内容（２） | H10: 内容（３）
B11: 1 | F11: 1 | G11: 1 | H11: 1 | J11: =$C11*$D11*$E11*$F11*$G11*$H11 -> 0 | K11: =$N11*O11 -> 0 | M11: 1
B12: 2 | F12: 1 | G12: 1 | H12: 1 | J12: =$C12*$D12*$E12*$F12*$G12*$H12 -> 0 | K12: =$N12*O12 -> 0 | M12: 2
B13: 3 | F13: 1 | G13: 1 | H13: 1 | J13: 0 | K13: 0 | M13: 3
B14: 4 | F14: 1 | G14: 1 | H14: 1 | J14: 0 | K14: 0 | M14: 4
B15: 5 | F15: 1 | G15: 1 | H15: 1 | J15: 0 | K15: 0 | M15: 5
B16: 6 | F16: 1 | G16: 1 | H16: 1 | J16: 0 | K16: 0 | M16: 6
B17: 7 | F17: 1 | G17: 1 | H17: 1 | J17: 0 | K17: 0 | M17: 7
B18: 8 | F18: 1 | G18: 1 | H18: 1 | J18: 0 | K18: 0 | M18: 8
B19: 9 | F19: 1 | G19: 1 | H19: 1 | J19: 0 | K19: 0 | M19: 9
B20: 10 | F20: 1 | G20: 1 | H20: 1 | J20: 0 | K20: 0 | M20: 10
B22: 【浸透トレンチ】 | C22: 単位設計浸透能（ｍ3/ｈｒ/m） | E22: 設置数量 （ｍ） | F22: 影響係数 | M22: 【浸透トレンチ】 | N22: 体積 （ｍ3） | O22: 空隙率 （％）
C23: 比浸透量（㎡） | D23: 飽和透水係数 （m/hr） | F23: （1） | G23: （2） | H23: （3）
F24: 内容（１） | G24: 内容（２） | H24: 内容（３）
B25: 1 | F25: 1 | G25: 1 | H25: 1 | J25: =$C25*$D25*$E25*$F25*$G25*$H25 -> 0 | K25: =$N25*O25 -> 0 | M25: 1
B26: 2 | F26: 1 | G26: 1 | H26: 1 | J26: =$C26*$D26*$E26*$F26*$G26*$H26 -> 0 | K26: 0 | M26: 2
B27: 3 | F27: 1 | G27: 1 | H27: 1 | J27: 0 | K27: 0 | M27: 3
B28: 4 | F28: 1 | G28: 1 | H28: 1 | J28: 0 | K28: 0 | M28: 4
B29: 5 | F29: 1 | G29: 1 | H29: 1 | J29: 0 | K29: 0 | M29: 5
B30: 6 | F30: 1 | G30: 1 | H30: 1 | J30: 0 | K30: 0 | M30: 6
B31: 7 | F31: 1 | G31: 1 | H31: 1 | J31: 0 | K31: 0 | M31: 7
B32: 8 | F32: 1 | G32: 1 | H32: 1 | J32: 0 | K32: 0 | M32: 8
B33: 9 | F33: 1 | G33: 1 | H33: 1 | J33: 0 | K33: 0 | M33: 9
B34: 10 | F34: 1 | G34: 1 | H34: 1 | J34: 0 | K34: 0 | M34: 10
B36: 【透水性舗装】 | C36: 単位設計浸透能（ｍ3/ｈｒ/㎡） | E36: 設置数量 （㎡） | F36: 影響係数 | M36: 【透水性塗装】 | N36: 体積 （ｍ3） | O36: 空隙率 （％）
C37: 比浸透量（㎡） | D37: 飽和透水係数 （m/hr） | F37: （1） | G37: （2） | H37: （3）
F38: 内容（１） | G38: 内容（２） | H38: 内容（３）
B39: 1 | C39: 1.297 | D39: 0.0072 | E39: 5000 | F39: 1 | G39: 1 | H39: 1 | J39: =$C39*$D39*$E39*$F39*$G39*$H39 -> 46.692 | K39: =$N39*O39 -> 0 | M39: 1 | O39: 10
B40: 2 | F40: 1 | G40: 1 | H40: 1 | J40: =$C40*$D40*$E40*$F40*$G40*$H40 -> 0 | K40: =$N40*O40 -> 0 | M40: 2
B41: 3 | F41: 1 | G41: 1 | H41: 1 | J41: 0 | K41: 0 | M41: 3
B42: 4 | F42: 1 | G42: 1 | H42: 1 | J42: 0 | K42: 0 | M42: 4
B43: 5 | F43: 1 | G43: 1 | H43: 1 | J43: 0 | K43: 0 | M43: 5
B44: 6 | F44: 1 | G44: 1 | H44: 1 | J44: 0 | K44: 0 | M44: 6
B45: 7 | F45: 1 | G45: 1 | H45: 1 | J45: 0 | K45: 0 | M45: 7
B46: 8 | F46: 1 | G46: 1 | H46: 1 | J46: 0 | K46: 0 | M46: 8
B47: 9 | F47: 1 | G47: 1 | H47: 1 | J47: 0 | K47: 0 | M47: 9
B48: 10 | F48: 1 | G48: 1 | H48: 1 | J48: 0 | K48: 0 | M48: 10
B50: 【その他】 | C50: 単位設計浸透能（ｍ3/ｈｒ/単位） | E50: 設置数量 （単位） | F50: 影響係数 | M50: 【その他】 | N50: 体積 （ｍ3） | O50: 空隙率 （％）
C51: 比浸透量（㎡） | D51: 飽和透水係数 （m/hr） | F51: （1） | G51: （2） | H51: （3）
F52: 内容（１） | G52: 内容（２） | H52: 内容（３）
B53: 1 | F53: 1 | G53: 1 | H53: 1 | J53: =$C53*$D53*$E53*$F53*$G53*$H53 -> 0 | K53: =$N53*O53 -> 0 | M53: 1
B54: 2 | F54: 1 | G54: 1 | H54: 1 | J54: 0 | K54: 0 | M54: 2
B55: 3 | F55: 1 | G55: 1 | H55: 1 | J55: 0 | K55: 0 | M55: 3
B56: 4 | F56: 1 | G56: 1 | H56: 1 | J56: 0 | K56: 0 | M56: 4
B57: 5 | F57: 1 | G57: 1 | H57: 1 | J57: 0 | K57: 0 | M57: 5
B58: 6 | F58: 1 | G58: 1 | H58: 1 | J58: 0 | K58: 0 | M58: 6
B59: 7 | F59: 1 | G59: 1 | H59: 1 | J59: 0 | K59: 0 | M59: 7
B60: 8 | F60: 1 | G60: 1 | H60: 1 | J60: 0 | K60: 0 | M60: 8
B61: 9 | F61: 1 | G61: 1 | H61: 1 | J61: 0 | K61: 0 | M61: 9
B62: 10 | F62: 1 | G62: 1 | H62: 1 | J62: 0 | K62: 0 | M62: 10

Sheet 浸透施設能力（貯留浸透モデル_道路管理者用）
A2: 透水性舗装 | H2: 部分を入力して下さい
B4: 基本諸元
B5: 設置数量(舗装面積) (m2) | D5: 3000
B6: 飽和透水係数 （m/hr） | D6: 0.0072 | G6: 上層路盤での貯留率(%) | I6: =L17 -> 12.5
B7: 比浸透量算定定数 K=aH+b | C7: a | D7: 0.014 | G7: 下層路盤での貯留率(%) | I7: =L18 -> 4.5
C8: b | D8: 1.287 | G8: 下層路盤厚(mm) | I8: =D18 -> 400
B9: 目詰まり 係数 | C9: C1 | D9: 0.9 | G9: 下層路盤での貯留量(mm) | I9: =M18 -> 18
C10: C2 | D10: 0.9 | G10: 貯留量の合計(mm) | I10: =M19 -> 55.5
B12: 貯留率と水拘束率
D13: 厚さ(mm) | E13: 空気間隙率 (%) | F13: 空気間隙率との関係 | G13: 水拘束率 (%) | H13: 水拘束量 (mm) | I13: 貯留率 (%) | J13: 貯留量 (mm) | L13: STEP2での 貯留率 (%) | M13: STEP2での 貯留量 (mm)
B14: 関係式 | D14: a | E14: b | F14: b' | G14: c | H14: a×c/100 | I14: d (=b+b') | J14: a×d/100 | L14: d-c | M14: a×(d-c)/100
B15: 表層 | D15: 50 | E15: 20 | F15: -6 | G15: 1.5 | H15: =D15*G15/100 -> 0.75 | I15: =E15+F15 -> 14 | J15: =D15*I15/100 -> 7 | L15: =I15-G15 -> 12.5 | M15: =D15*(I15-G15)/100 -> 6.25
B16: 中間層・基層 | D16: 100 | E16: 20 | F16: -6 | G16: 1.5 | H16: =D16*G16/100 -> 1.5 | I16: =E16+F16 -> 14 | J16: =D16*I16/100 -> 14 | L16: =I16-G16 -> 12.5 | M16: =D16*(I16-G16)/100 -> 12.5
B17: 上層路盤 | D17: 150 | E17: 20 | F17: -6 | G17: 1.5 | H17: =D17*G17/100 -> 2.25 | I17: =E17+F17 -> 14 | J17: =D17*I17/100 -> 21 | L17: =I17-G17 -> 12.5 | M17: =D17*(I17-G17)/100 -> 18.75
B18: 下層路盤 | D18: 400 | E18: 8 | F18: -3 | G18: 0.5 | H18: =D18*G18/100 -> 2 | I18: =E18+F18 -> 5 | J18: =D18*I18/100 -> 20 | L18: =I18-G18 -> 4.5 | M18: =D18*(I18-G18)/100 -> 18
B19: 合計 | D19: =SUM(D15:D18) -> 700 | E19: - | F19: - | G19: - | H19: =SUM(H15:H18) -> 6.5 | I19: - | J19: =SUM(J15:J18) -> 62 | L19: - | M19: =SUM(M15:M18) -> 55.5
A21: 浸透マス・トレンチ
B23: 浸透能諸元 | K23: 空隙貯留諸元
B24: 【浸透マス】 | D24: 単位設計浸透能（ｍ3/ｈｒ/個） | F24: 設置数量 （個） | G24: 設計水頭 (m) | H24: 影響係数 | K24: 【浸透 マス】 | L24: 体積 （ｍ3） | M24: 空隙率 （％） | P24: Σ | Q24: 設計浸透量 | R24: 平均設計水頭 | S24: 設計空隙貯留量
D25: 比浸透量（㎡） | E25: 飽和透水係数 （m/hr） | H25: 地下水位 係数 | I25: 目詰まり 係数
O26: 小計
B27: 1 | D27: 10 | E27: 0.0072 | F27: 10 | G27: 0.8 | H27: 1 | I27: 1 | K27: 1 | L27: 500 | M27: 20 | P27: =D27*E27*F27*G27*H27*I27 -> 0.576 | Q27: =D27*E27*F27*H27*I27 -> 0.72 | S27: =L27*M27/100 -> 100
B28: 2 | H28: 1 | I28: 1 | K28: 2 | P28: =D28*E28*F28*G28*H28*I28 -> 0 | Q28: =D28*E28*F28*H28*I28 -> 0 | S28: =L28*M28/100 -> 0
B29: 3 | H29: 1 | I29: 1 | K29: 3 | P29: 0 | Q29: 0 | S29: 0
B30: 4 | H30: 1 | I30: 1 | K30: 4 | P30: 0 | Q30: 0 | S30: 0
B31: 5 | H31: 1 | I31: 1 | K31: 5 | P31: 0 | Q31: 0 | S31: 0
B32: 6 | H32: 1 | I32: 1 | K32: 6 | P32: 0 | Q32: 0 | S32: 0
B33: 7 | H33: 1 | I33: 1 | K33: 7 | P33: 0 | Q33: 0 | S33: 0
B34: 8 | H34: 1 | I34: 1 | K34: 8 | P34: 0 | Q34: 0 | S34: 0
B35: 9 | H35: 1 | I35: 1 | K35: 9 | P35: 0 | Q35: 0 | S35: 0
B36: 10 | H36: 1 | I36: 1 | K36: 10 | P36: 0 | Q36: 0 | S36: 0
B38: 【浸透トレンチ】 | D38: 単位設計浸透能（ｍ3/ｈｒ/m） | F38: 設置数量 （ｍ） | G38: 設計水頭 (m) | H38: 影響係数 | K38: 【浸透 トレンチ】 | L38: 体積 （ｍ3） | M38: 空隙率 （％）
D39: 比浸透量（㎡） | E39: 飽和透水係数 （m/hr） | H39: 地下水位 係数 | I39: 目詰まり 係数
B41: 1 | H41: 1 | I41: 1 | K41: 1 | P41: =D41*E41*F41*G41*H41*I41 -> 0 | Q41: =D41*E41*F41*H41*I41 -> 0 | S41: =L41*M41/100 -> 0
B42: 2 | H42: 1 | I42: 1 | K42: 2 | P42: =D42*E42*F42*G42*H42*I42 -> 0 | Q42: =D42*E42*F42*H42*I42 -> 0 | S42: 0
B43: 3 | H43: 1 | I43: 1 | K43: 3 | P43: 0 | Q43: 0 | S43: 0
B44: 4 | H44: 1 | I44: 1 | K44: 4 | P44: 0 | Q44: 0 | S44: 0
B45: 5 | H45: 1 | I45: 1 | K45: 5 | P45: 0 | Q45: 0 | S45: 0
B46: 6 | H46: 1 | I46: 1 | K46: 6 | P46: 0 | Q46: 0 | S46: 0
B47: 7 | H47: 1 | I47: 1 | K47: 7 | P47: 0 | Q47: 0 | S47: 0
B48: 8 | H48: 1 | I48: 1 | K48: 8 | P48: 0 | Q48: 0 | S48: 0
B49: 9 | H49: 1 | I49: 1 | K49: 9 | P49: 0 | Q49: 0 | S49: 0
B50: 10 | H50: 1 | I50: 1 | K50: 10 | P50: 0 | Q50: 0 | S50: 0
B52: 統合諸元
B53: 設計浸透能(m3/hr) | D53: =Q55 -> 0.72
B54: 平均設計水頭(m) | D54: =IF(D53>0,+R55,0) -> 0.8
B55: 設計空隙貯留量(m3) | D55: =S55 -> 100 | O55: 総合計 | P55: =P57+P58 -> 0.576 | Q55: =Q57+Q58 -> 0.72 | R55: =P55/Q55 -> 0.8 | S55: =S57+S58 -> 100
O57: マス | P57: =SUM(P27:P36) -> 0.576 | Q57: =SUM(Q27:Q36) -> 0.72 | R57: =P57/Q57 -> 0.8 | S57: =SUM(S27:S36) -> 100
O58: トレンチ | P58: =SUM(P41:P50) -> 0 | Q58: =SUM(Q41:Q50) -> 0 | R58: =P58/Q58 ->  | S58: =SUM(S41:S50) -> 0

Sheet 02流出計算（QT-Sグラフ）
B2: 流 出 計 算 条 件 | H2: 流 出 計 算 結 果
H4: 時刻 | I4: 浸透考慮前 | J4: 浸透考慮後
B5: 1 | C5: 浸透施設なし | H5: 00:00:00 | I5: 0 | J5: 0
H6: 00:10:00 | I6: 0.05528 | J6: 0.05528
C7: 浸透施設あり | H7: 00:20:00 | I7: 0.05583 | J7: 0.05583
C8: ※「浸透施設能力」シートに浸透施設諸元を入力してください。 | H8: 00:30:00 | I8: 0.05639 | J8: 0.05639
H9: 00:40:00 | I9: 0.05697 | J9: 0.05697
H10: 00:50:00 | I10: 0.05756 | J10: 0.05756
C11: 浸透施設あり | H11: 01:00:00 | I11: 0.05816 | J11: 0.05816
C12: （貯留浸透モデル_道路管理者用） | H12: 01:10:00 | I12: 0.05878 | J12: 0.05878
C13: ※「浸透施設能力（貯留浸透モデル_道路管理者用）」シートに浸透施設諸元を入力してください。 | H13: 01:20:00 | I13: 0.05942 | J13: 0.05942
H14: 01:30:00 | I14: 0.06007 | J14: 0.06007
H15: 01:40:00 | I15: 0.06074 | J15: 0.06074
H16: 01:50:00 | I16: 0.06143 | J16: 0.06143
H17: 02:00:00 | I17: 0.06214 | J17: 0.06214
H18: 02:10:00 | I18: 0.06288 | J18: 0.06288
H19: 02:20:00 | I19: 0.06363 | J19: 0.06363
H20: 02:30:00 | I20: 0.0644 | J20: 0.0644
H21: 02:40:00 | I21: 0.0652 | J21: 0.0652
H22: 02:50:00 | I22: 0.06602 | J22: 0.06602
H23: 03:00:00 | I23: 0.06687 | J23: 0.06687
H24: 03:10:00 | I24: 0.06775 | J24: 0.06775
H25: 03:20:00 | I25: 0.06865 | J25: 0.06865
H26: 03:30:00 | I26: 0.06959 | J26: 0.06959
H27: 03:40:00 | I27: 0.07056 | J27: 0.07056
H28: 03:50:00 | I28: 0.07156 | J28: 0.07156
H29: 04:00:00 | I29: 0.07259 | J29: 0.07259
H30: 04:10:00 | I30: 0.07367 | J30: 0.07367
H31: 04:20:00 | I31: 0.07478 | J31: 0.07478
H32: 04:30:00 | I32: 0.07593 | J32: 0.07593
H33: 04:40:00 | I33: 0.07713 | J33: 0.07713
H34: 04:50:00 | I34: 0.07838 | J34: 0.07838
H35: 05:00:00 | I35: 0.07968 | J35: 0.07968
H36: 05:10:00 | I36: 0.08103 | J36: 0.08103
H37: 05:20:00 | I37: 0.08244 | J37: 0.08244
H38: 05:30:00 | I38: 0.08391 | J38: 0.08391
H39: 05:40:00 | I39: 0.08544 | J39: 0.08544
H40: 05:50:00 | I40: 0.08705 | J40: 0.08705
H41: 06:00:00 | I41: 0.08873 | J41: 0.08873
H42: 06:10:00 | I42: 0.0905 | J42: 0.0905
H43: 06:20:00 | I43: 0.09235 | J43: 0.09235
H44: 06:30:00 | I44: 0.0943 | J44: 0.0943
H45: 06:40:00 | I45: 0.09635 | J45: 0.09635
H46: 06:50:00 | I46: 0.09851 | J46: 0.09851
H47: 07:00:00 | I47: 0.10079 | J47: 0.10079
H48: 07:10:00 | I48: 0.10321 | J48: 0.10321
H49: 07:20:00 | I49: 0.10577 | J49: 0.10577
H50: 07:30:00 | I50: 0.1085 | J50: 0.1085
H51: 07:40:00 | I51: 0.1114 | J51: 0.1114
H52: 07:50:00 | I52: 0.11449 | J52: 0.11449
H53: 08:00:00 | I53: 0.11781 | J53: 0.11781
H54: 08:10:00 | I54: 0.12136 | J54: 0.12136
H55: 08:20:00 | I55: 0.12519 | J55: 0.12519
H56: 08:30:00 | I56: 0.12933 | J56: 0.12933
H57: 08:40:00 | I57: 0.13381 | J57: 0.13381
H58: 08:50:00 | I58: 0.13868 | J58: 0.13868
H59: 09:00:00 | I59: 0.14401 | J59: 0.14401
H60: 09:10:00 | I60: 0.14986 | J60: 0.14986
H61: 09:20:00 | I61: 0.15632 | J61: 0.15632
H62: 09:30:00 | I62: 0.16349 | J62: 0.16349
H63: 09:40:00 | I63: 0.17151 | J63: 0.17151
H64: 09:50:00 | I64: 0.18055 | J64: 0.18055
H65: 10:00:00 | I65: 0.19081 | J65: 0.19081
H66: 10:10:00 | I66: 0.2026 | J66: 0.2026
H67: 10:20:00 | I67: 0.2163 | J67: 0.2163
H68: 10:30:00 | I68: 0.23243 | J68: 0.23243
H69: 10:40:00 | I69: 0.25177 | J69: 0.25177
H70: 10:50:00 | I70: 0.27544 | J70: 0.27544
H71: 11:00:00 | I71: 0.30518 | J71: 0.30518
H72: 11:10:00 | I72: 0.34387 | J72: 0.34387
H73: 11:20:00 | I73: 0.3966 | J73: 0.3966
H74: 11:30:00 | I74: 0.47351 | J74: 0.47351
H75: 11:40:00 | I75: 0.59838 | J75: 0.59838
H76: 11:50:00 | I76: 0.84641 | J76: 0.84641
H77: 12:00:00 | I77: 1.80097 | J77: 1.80097
H78: 12:10:00 | I78: 1.10743 | J78: 1.10743
H79: 12:20:00 | I79: 0.69717 | J79: 0.69717
H80: 12:30:00 | I80: 0.52738 | J80: 0.52738
H81: 12:40:00 | I81: 0.43105 | J81: 0.43105
H82: 12:50:00 | I82: 0.36802 | J82: 0.36802
H83: 13:00:00 | I83: 0.32316 | J83: 0.32316
H84: 13:10:00 | I84: 0.28941 | J84: 0.28941
H85: 13:20:00 | I85: 0.26297 | J85: 0.26297
H86: 13:30:00 | I86: 0.24164 | J86: 0.24164
H87: 13:40:00 | I87: 0.22402 | J87: 0.22402
H88: 13:50:00 | I88: 0.20918 | J88: 0.20918
H89: 14:00:00 | I89: 0.19649 | J89: 0.19649
H90: 14:10:00 | I90: 0.18551 | J90: 0.18551
H91: 14:20:00 | I91: 0.17589 | J91: 0.17589
H92: 14:30:00 | I92: 0.16739 | J92: 0.16739
H93: 14:40:00 | I93: 0.15981 | J93: 0.15981
H94: 14:50:00 | I94: 0.15301 | J94: 0.15301
H95: 15:00:00 | I95: 0.14687 | J95: 0.14687
H96: 15:10:00 | I96: 0.14129 | J96: 0.14129
H97: 15:20:00 | I97: 0.13619 | J97: 0.13619
H98: 15:30:00 | I98: 0.13152 | J98: 0.13152
H99: 15:40:00 | I99: 0.12722 | J99: 0.12722
H100: 15:50:00 | I100: 0.12324 | J100: 0.12324
H101: 16:00:00 | I101: 0.11955 | J101: 0.11955
H102: 16:10:00 | I102: 0.11612 | J102: 0.11612
H103: 16:20:00 | I103: 0.11292 | J103: 0.11292
H104: 16:30:00 | I104: 0.10992 | J104: 0.10992
H105: 16:40:00 | I105: 0.10711 | J105: 0.10711
H106: 16:50:00 | I106: 0.10447 | J106: 0.10447
H107: 17:00:00 | I107: 0.10198 | J107: 0.10198
H108: 17:10:00 | I108: 0.09963 | J108: 0.09963
H109: 17:20:00 | I109: 0.09741 | J109: 0.09741
H110: 17:30:00 | I110: 0.09531 | J110: 0.09531
H111: 17:40:00 | I111: 0.09331 | J111: 0.09331
H112: 17:50:00 | I112: 0.09141 | J112: 0.09141
H113: 18:00:00 | I113: 0.0896 | J113: 0.0896
H114: 18:10:00 | I114: 0.08788 | J114: 0.08788
H115: 18:20:00 | I115: 0.08624 | J115: 0.08624
H116: 18:30:00 | I116: 0.08467 | J116: 0.08467
H117: 18:40:00 | I117: 0.08317 | J117: 0.08317
H118: 18:50:00 | I118: 0.08173 | J118: 0.08173
H119: 19:00:00 | I119: 0.08035 | J119: 0.08035
H120: 19:10:00 | I120: 0.07902 | J120: 0.07902
H121: 19:20:00 | I121: 0.07775 | J121: 0.07775
H122: 19:30:00 | I122: 0.07653 | J122: 0.07653
H123: 19:40:00 | I123: 0.07535 | J123: 0.07535
H124: 19:50:00 | I124: 0.07422 | J124: 0.07422
H125: 20:00:00 | I125: 0.07312 | J125: 0.07312
H126: 20:10:00 | I126: 0.07207 | J126: 0.07207
H127: 20:20:00 | I127: 0.07105 | J127: 0.07105
H128: 20:30:00 | I128: 0.07007 | J128: 0.07007
H129: 20:40:00 | I129: 0.06912 | J129: 0.06912
H130: 20:50:00 | I130: 0.0682 | J130: 0.0682
H131: 21:00:00 | I131: 0.06731 | J131: 0.06731
H132: 21:10:00 | I132: 0.06644 | J132: 0.06644
H133: 21:20:00 | I133: 0.06561 | J133: 0.06561
H134: 21:30:00 | I134: 0.0648 | J134: 0.0648
H135: 21:40:00 | I135: 0.06401 | J135: 0.06401
H136: 21:50:00 | I136: 0.06325 | J136: 0.06325
H137: 22:00:00 | I137: 0.06251 | J137: 0.06251
H138: 22:10:00 | I138: 0.06179 | J138: 0.06179
H139: 22:20:00 | I139: 0.06109 | J139: 0.06109
H140: 22:30:00 | I140: 0.06041 | J140: 0.06041
H141: 22:40:00 | I141: 0.05974 | J141: 0.05974
H142: 22:50:00 | I142: 0.0591 | J142: 0.0591
H143: 23:00:00 | I143: 0.05847 | J143: 0.05847
H144: 23:10:00 | I144: 0.05786 | J144: 0.05786
H145: 23:20:00 | I145: 0.05726 | J145: 0.05726
H146: 23:30:00 | I146: 0.05668 | J146: 0.05668
H147: 23:40:00 | I147: 0.05611 | J147: 0.05611
H148: 23:50:00 | I148: 0.05556 | J148: 0.05556
H149: 1 | I149: 0.05502 | J149: 0.05502

Sheet 03-①調整池容量の概算
A1: ※①自然調節方式により調整地容量を概算する場合に入力してください
B3: 入 力 条 件
C5: 行為後ピーク流入量 | E5: =MAX('02流出計算（QT-Sグラフ）'!$J$5:$J$149) -> 1.80097 | F5: m3/s
C6: （浸透考慮後）
B8: 調整池諸元
C9: 許容放流量 | E9: =MAX('01流出計算（Q-Tグラフ）'!$I$5:$I$149) -> 0.40022 | F9: m3/s | I9: 概 算 結 果
C10: （行為前ピーク流入量）
J11: 必要容量 | K11: 500 | L11: m3/ha
C12: 調整池高 | E12: 2 | F12: m
B14: 浸透施設条件 | D14: =IF('02流出計算（QT-Sグラフ）'!$B$5=1,"浸透施設なし",IF('02流出計算（QT-Sグラフ）'!$B$5=2,"浸透施設あり","浸透施設あり（貯留浸透モデル_道路管理者用）")) -> 浸透施設なし | G14: ='02流出計算（QT-Sグラフ）'!$B$5 -> 1 | J14: オリフィス径（円管、直径） | K14: 0.368 | L14: m

Sheet 04-①調節計算（自然調節方式）
B2: 入 力 条 件
B4: 設 定 調 整 池 諸 元 | K4: 行 為 後 流 入 量 | U4: 計 算 結 果 （時 系 列）
B6: 水深-容量 | G6: 放流口形状 | K6: 行為後ピーク流入量 | M6: =MAX('02流出計算（QT-Sグラフ）'!$J$5:$J$149) -> 1.80097 | N6: m3/s | U6: 時刻 | V6: 行為後流入量 | W6: 浸透考慮後流入量 | X6: 許容放流量 | Y6: 調節後放流量 | Z6: 調整池水位
B7: No | C7: 水深H（m） | D7: 容量V（m3） | G7: （口径） | K7: （浸透考慮後） | U7: 00:00:00 | V7: 0 | W7: 0 | X7: 0.40022 | Y7: 0 | Z7: 0
B8: 1 | C8: 0 | D8: 0 | F8: 1 | U8: 00:10:00 | V8: 0.05528 | W8: 0.05528 | X8: 0.40022 | Y8: 0.0004863321708 | Z8: 0.008885459648
B9: 2 | C9: 2 | D9: =ROUNDDOWN('03-①調整池容量の概算'!K11*流出係数算出!H8,-2) -> 3700 | G9: 直径 | H9: 0.37 | I9: m | K9: 許容放流量 | M9: =MAX('01流出計算（Q-Tグラフ）'!$I$5:$I$149) -> 0.40022 | N9: m3/s | U9: 00:20:00 | V9: 0.05583 | W9: 0.05583 | X9: 0.40022 | Y9: 0.002527056088 | Z9: 0.02641463993
B10: 3 | K10: （行為前ピーク流入量） | U10: 00:30:00 | V10: 0.05639 | W10: 0.05639 | X10: 0.40022 | Y10: 0.005324474899 | Z10: 0.04333925653
B11: 4 | P11: 計 算 結 果 | U11: 00:40:00 | V11: 0.05697 | W11: 0.05697 | X11: 0.40022 | Y11: 0.008555151333 | Z11: 0.05947120903
B12: 5 | G12: 高さ | H12: 0.2 | I12: m | U12: 00:50:00 | V12: 0.05756 | W12: 0.05756 | X12: 0.40022 | Y12: 0.01205206285 | Z12: 0.07470193106
B13: 6 | G13: 幅 | H13: 0.2 | I13: m | U13: 01:00:00 | V13: 0.05816 | W13: 0.05816 | X13: 0.40022 | Y13: 0.01566843235 | Z13: 0.08897212102
B14: 7 | P14: 総合評価 | R14: O.K | U14: 01:10:00 | V14: 0.05878 | W14: 0.05878 | X14: 0.40022 | Y14: 0.01927624517 | Z14: 0.1022686598
B15: 8 | G15: （管底位置） | U15: 01:20:00 | V15: 0.05942 | W15: 0.05942 | X15: 0.40022 | Y15: 0.02290512377 | Z15: 0.1145960054
B16: 9 | G16: 池底高から | H16: 0 | I16: m | P16: 放流量評価 | R16: 許容放流量以下 | U16: 01:30:00 | V16: 0.06007 | W16: 0.06007 | X16: 0.40022 | Y16: 0.02639087565 | Z16: 0.1259788163
B17: 10 | U17: 01:40:00 | V17: 0.06074 | W17: 0.06074 | X17: 0.40022 | Y17: 0.02975753546 | Z17: 0.1364644794
B18: 11 | P18: 池の容量不足 | R18: 無 | U18: 01:50:00 | V18: 0.06143 | W18: 0.06143 | X18: 0.40022 | Y18: 0.0329667003 | Z18: 0.146104333
B19: 12 | U19: 02:00:00 | V19: 0.06214 | W19: 0.06214 | X19: 0.40022 | Y19: 0.03598542925 | Z19: 0.154961285
B20: 13 | U20: 02:10:00 | V20: 0.06288 | W20: 0.06288 | X20: 0.40022 | Y20: 0.03887263152 | Z20: 0.1630956535
B21: 14 | P21: 最大放流量 | R21: 0.3815300528 | S21: m3/s | U21: 02:20:00 | V21: 0.06363 | W21: 0.06363 | X21: 0.40022 | Y21: 0.0416097409 | Z21: 0.1705595931
B22: 15 | U22: 02:30:00 | V22: 0.0644 | W22: 0.0644 | X22: 0.40022 | Y22: 0.04413476964 | Z22: 0.1774166995
B23: 16 | P23: 池内最大水深 | R23: 1.96941384 | S23: m | U23: 02:40:00 | V23: 0.0652 | W23: 0.0652 | X23: 0.40022 | Y23: 0.04647709812 | Z23: 0.1837390993
B24: 17 | U24: 02:50:00 | V24: 0.06602 | W24: 0.06602 | X24: 0.40022 | Y24: 0.04871822289 | Z24: 0.1895809392
B25: 18 | P25: 池内最大ボリューム | R25: 3643.415604 | S25: m3 | U25: 03:00:00 | V25: 0.06687 | W25: 0.06687 | X25: 0.40022 | Y25: 0.05080326551 | Z25: 0.1949920491
B26: 19 | U26: 03:10:00 | V26: 0.06775 | W26: 0.06775 | X26: 0.40022 | Y26: 0.05282052151 | Z26: 0.2000184621
B27: 20 | U27: 03:20:00 | V27: 0.06865 | W27: 0.06865 | X27: 0.40022 | Y27: 0.0546680834 | Z27: 0.2047067964
B28: 21 | U28: 03:30:00 | V28: 0.06959 | W28: 0.06959 | X28: 0.40022 | Y28: 0.05643782894 | Z28: 0.2091069187
B29: 22 | P29: 許 可 申 請 図 書 の 作 成 | U29: 03:40:00 | V29: 0.07056 | W29: 0.07056 | X29: 0.40022 | Y29: 0.05812642485 | Z29: 0.2132559587
B30: 23 | U30: 03:50:00 | V30: 0.07156 | W30: 0.07156 | X30: 0.40022 | Y30: 0.05973077869 | Z30: 0.2171904662
B31: 24 | P31: ■【様式】許可申請図書の保存場所 | U31: 04:00:00 | V31: 0.07259 | W31: 0.07259 | X31: 0.40022 | Y31: 0.06129882032 | Z31: 0.2209397204
B32: 25 | P32: C:\【様式】許可申請図書.xls | U32: 04:10:00 | V32: 0.07367 | W32: 0.07367 | X32: 0.40022 | Y32: 0.06282912174 | Z32: 0.2245287028
B33: 26 | U33: 04:20:00 | V33: 0.07478 | W33: 0.07478 | X33: 0.40022 | Y33: 0.06426870695 | Z33: 0.227991217
B34: 27 | U34: 04:30:00 | V34: 0.07593 | W34: 0.07593 | X34: 0.40022 | Y34: 0.06571912219 | Z34: 0.2313515691
B35: 28 | U35: 04:40:00 | V35: 0.07713 | W35: 0.07713 | X35: 0.40022 | Y35: 0.06707556343 | Z35: 0.2346378363
B36: 29 | U36: 04:50:00 | V36: 0.07838 | W36: 0.07838 | X36: 0.40022 | Y36: 0.06844121066 | Z36: 0.237879981
B37: 30 | U37: 05:00:00 | V37: 0.07968 | W37: 0.07968 | X37: 0.40022 | Y37: 0.06986906063 | Z37: 0.2410826397
B38: 31 | U38: 05:10:00 | V38: 0.08103 | W38: 0.08103 | X38: 0.40022 | Y38: 0.07125328432 | Z38: 0.2442590162
B39: 32 | U39: 05:20:00 | V39: 0.08244 | W39: 0.08244 | X39: 0.40022 | Y39: 0.07264653044 | Z39: 0.2474325598
B40: 33 | U40: 05:30:00 | V40: 0.08391 | W40: 0.08391 | X40: 0.40022 | Y40: 0.07404874092 | Z40: 0.2506198131
B41: 34 | U41: 05:40:00 | V41: 0.08544 | W41: 0.08544 | X41: 0.40022 | Y41: 0.07545985883 | Z41: 0.2538373374
B42: 35 | U42: 05:50:00 | V42: 0.08705 | W42: 0.08705 | X42: 0.40022 | Y42: 0.07693461852 | Z42: 0.2570960708
B43: 36 | U43: 06:00:00 | V43: 0.08873 | W43: 0.08873 | X43: 0.40022 | Y43: 0.0784740157 | Z43: 0.2603995355
B44: 37 | U44: 06:10:00 | V44: 0.0905 | W44: 0.0905 | X44: 0.40022 | Y44: 0.07996803135 | Z44: 0.2637705549
B45: 38 | U45: 06:20:00 | V45: 0.09235 | W45: 0.09235 | X45: 0.40022 | Y45: 0.08152726941 | Z45: 0.2672334791
B46: 39 | U46: 06:30:00 | V46: 0.0943 | W46: 0.0943 | X46: 0.40022 | Y46: 0.0832089818 | Z46: 0.27078706
B47: 40 | U47: 06:40:00 | V47: 0.09635 | W47: 0.09635 | X47: 0.40022 | Y47: 0.08490210101 | Z47: 0.2744420196
B48: 41 | U48: 06:50:00 | V48: 0.09851 | W48: 0.09851 | X48: 0.40022 | Y48: 0.0866065507 | Z48: 0.2782287247
B49: 42 | U49: 07:00:00 | V49: 0.10079 | W49: 0.10079 | X49: 0.40022 | Y49: 0.08843703478 | Z49: 0.2821621973
B50: 43 | U50: 07:10:00 | V50: 0.10321 | W50: 0.10321 | X50: 0.40022 | Y50: 0.09039585669 | Z50: 0.2862433501
B51: 44 | U51: 07:20:00 | V51: 0.10577 | W51: 0.10577 | X51: 0.40022 | Y51: 0.09236893099 | Z51: 0.2904944656
B52: 45 | U52: 07:30:00 | V52: 0.1085 | W52: 0.1085 | X52: 0.40022 | Y52: 0.09453217479 | Z52: 0.2949326646
B53: 46 | U53: 07:40:00 | V53: 0.1114 | W53: 0.1114 | X53: 0.40022 | Y53: 0.09677119231 | Z53: 0.2995699564
B54: 47 | U54: 07:50:00 | V54: 0.11449 | W54: 0.11449 | X54: 0.40022 | Y54: 0.09914685168 | Z54: 0.3044302736
B55: 48 | U55: 08:00:00 | V55: 0.11781 | W55: 0.11781 | X55: 0.40022 | Y55: 0.101661878 | Z55: 0.3095369661
B56: 49 | U56: 08:10:00 | V56: 0.12136 | W56: 0.12136 | X56: 0.40022 | Y56: 0.1043190956 | Z56: 0.3149189704
B57: 50 | U57: 08:20:00 | V57: 0.12519 | W57: 0.12519 | X57: 0.40022 | Y57: 0.1071214239 | Z57: 0.3206123997
U58: 08:30:00 | V58: 0.12933 | W58: 0.12933 | X58: 0.40022 | Y58: 0.1101953879 | Z58: 0.3266453491
U59: 08:40:00 | V59: 0.13381 | W59: 0.13381 | X59: 0.40022 | Y59: 0.1134229147 | Z59: 0.333054273
U60: 08:50:00 | V60: 0.13868 | W60: 0.13868 | X60: 0.40022 | Y60: 0.1169332716 | Z60: 0.3398867833
U61: 09:00:00 | V61: 0.14401 | W61: 0.14401 | X61: 0.40022 | Y61: 0.1207337368 | Z61: 0.347187809
U62: 09:10:00 | V62: 0.14986 | W62: 0.14986 | X62: 0.40022 | Y62: 0.1248319796 | Z62: 0.3550209361
U63: 09:20:00 | V63: 0.15632 | W63: 0.15632 | X63: 0.40022 | Y63: 0.1293663409 | Z63: 0.3634503976
U64: 09:30:00 | V64: 0.16349 | W64: 0.16349 | X64: 0.40022 | Y64: 0.1342180882 | Z64: 0.3725680577
U65: 09:40:00 | V65: 0.17151 | W65: 0.17151 | X65: 0.40022 | Y65: 0.1396634425 | Z65: 0.3824791609
U66: 09:50:00 | V66: 0.18055 | W66: 0.18055 | X66: 0.40022 | Y66: 0.1455869871 | Z66: 0.3933131452
U67: 10:00:00 | V67: 0.19081 | W67: 0.19081 | X67: 0.40022 | Y67: 0.1522794782 | Z67: 0.4052310157
U68: 10:10:00 | V68: 0.2026 | W68: 0.2026 | X68: 0.40022 | Y68: 0.159770088 | Z68: 0.4184245996
U69: 10:20:00 | V69: 0.2163 | W69: 0.2163 | X69: 0.40022 | Y69: 0.1682324118 | Z69: 0.4331647348
U70: 10:30:00 | V70: 0.23243 | W70: 0.23243 | X70: 0.40022 | Y70: 0.1752746112 | Z70: 0.4502279202
U71: 10:40:00 | V71: 0.25177 | W71: 0.25177 | X71: 0.40022 | Y71: 0.1775322997 | Z71: 0.4715349077
U72: 10:50:00 | V72: 0.27544 | W72: 0.27544 | X72: 0.40022 | Y72: 0.180422141 | Z72: 0.4989817551
U73: 11:00:00 | V73: 0.30518 | W73: 0.30518 | X73: 0.40022 | Y73: 0.1841376513 | Z73: 0.5340185455
U74: 11:10:00 | V74: 0.34387 | W74: 0.34387 | X74: 0.40022 | Y74: 0.1888594456 | Z74: 0.5787838812
U75: 11:20:00 | V75: 0.3966 | W75: 0.3966 | X75: 0.40022 | Y75: 0.1949745562 | Z75: 0.6366167458
U76: 11:30:00 | V76: 0.47351 | W76: 0.47351 | X76: 0.40022 | Y76: 0.2074406657 | Z76: 0.7124591422
U77: 11:40:00 | V77: 0.59838 | W77: 0.59838 | X77: 0.40022 | Y77: 0.2268386458 | Z77: 0.8158554701
U78: 11:50:00 | V78: 0.84641 | W78: 0.84641 | X78: 0.40022 | Y78: 0.2534194791 | Z78: 0.9722660444
U79: 12:00:00 | V79: 1.80097 | W79: 1.80097 | X79: 0.40022 | Y79: 0.303123216 | Z79: 1.311320742
U80: 12:10:00 | V80: 1.10743 | W80: 1.10743 | X80: 0.40022 | Y80: 0.3488791993 | Z80: 1.677223054
U81: 12:20:00 | V81: 0.69717 | W81: 0.69717 | X81: 0.40022 | Y81: 0.3689247185 | Z81: 1.853460256
U82: 12:30:00 | V82: 0.52738 | W82: 0.52738 | X82: 0.40022 | Y82: 0.3773970493 | Z82: 1.93101078
U83: 12:40:00 | V83: 0.43105 | W83: 0.43105 | X83: 0.40022 | Y83: 0.380877015 | Z83: 1.9634685
U84: 12:50:00 | V84: 0.36802 | W84: 0.36802 | X84: 0.40022 | Y84: 0.3815300528 | Z84: 1.96941384
U85: 13:00:00 | V85: 0.32316 | W85: 0.32316 | X85: 0.40022 | Y85: 0.380301414 | Z85: 1.957956845
U86: 13:10:00 | V86: 0.28941 | W86: 0.28941 | X86: 0.40022 | Y86: 0.3777530786 | Z86: 1.934364765
U87: 13:20:00 | V87: 0.26297 | W87: 0.26297 | X87: 0.40022 | Y87: 0.3742440657 | Z87: 1.901994418
U88: 13:30:00 | V88: 0.24164 | W88: 0.24164 | X88: 0.40022 | Y88: 0.3699893234 | Z88: 1.863136571
U89: 13:40:00 | V89: 0.22402 | W89: 0.22402 | X89: 0.40022 | Y89: 0.365140074 | Z89: 1.819438831
U90: 13:50:00 | V90: 0.20918 | W90: 0.20918 | X90: 0.40022 | Y90: 0.3598106716 | Z90: 1.772127899
U91: 14:00:00 | V91: 0.19649 | W91: 0.19649 | X91: 0.40022 | Y91: 0.3540919339 | Z91: 1.722144233
U92: 14:10:00 | V92: 0.18551 | W92: 0.18551 | X92: 0.40022 | Y92: 0.3480791136 | Z92: 1.670224604
U93: 14:20:00 | V93: 0.17589 | W93: 0.17589 | X93: 0.40022 | Y93: 0.3417712568 | Z93: 1.616962382
U94: 14:30:00 | V94: 0.16739 | W94: 0.16739 | X94: 0.40022 | Y94: 0.3352408259 | Z94: 1.562843666
U95: 14:40:00 | V95: 0.15981 | W95: 0.15981 | X95: 0.40022 | Y95: 0.3285503242 | Z95: 1.508261317
U96: 14:50:00 | V96: 0.15301 | W96: 0.15301 | X96: 0.40022 | Y96: 0.3216897643 | Z96: 1.453544546
U97: 15:00:00 | V97: 0.14687 | W97: 0.14687 | X97: 0.40022 | Y97: 0.3146796678 | Z97: 1.398978692
U98: 15:10:00 | V98: 0.14129 | W98: 0.14129 | X98: 0.40022 | Y98: 0.3075745645 | Z98: 1.344801249
U99: 15:20:00 | V99: 0.13619 | W99: 0.13619 | X99: 0.40022 | Y99: 0.3004008618 | Z99: 1.291207396
U100: 15:30:00 | V100: 0.13152 | W100: 0.13152 | X100: 0.40022 | Y100: 0.2931195546 | Z100: 1.238373274
U101: 15:40:00 | V101: 0.12722 | W101: 0.12722 | X101: 0.40022 | Y101: 0.2858269494 | Z101: 1.186447895
U102: 15:50:00 | V102: 0.12324 | W102: 0.12324 | X102: 0.40022 | Y102: 0.2784506461 | Z102: 1.135558556
U103: 16:00:00 | V103: 0.11955 | W103: 0.11955 | X103: 0.40022 | Y103: 0.27107566 | Z103: 1.085817533
U104: 16:10:00 | V104: 0.11612 | W104: 0.11612 | X104: 0.40022 | Y104: 0.2636643378 | Z104: 1.037319695
U105: 16:20:00 | V105: 0.11292 | W105: 0.11292 | X105: 0.40022 | Y105: 0.2562718167 | Z105: 0.9901473461
U106: 16:30:00 | V106: 0.10992 | W106: 0.10992 | X106: 0.40022 | Y106: 0.2488997718 | Z106: 0.9443638452
U107: 16:40:00 | V107: 0.10711 | W107: 0.10711 | X107: 0.40022 | Y107: 0.2415088506 | Z107: 0.9000321767
U108: 16:50:00 | V108: 0.10447 | W108: 0.10447 | X108: 0.40022 | Y108: 0.2341823221 | Z108: 0.8572033379
U109: 17:00:00 | V109: 0.10198 | W109: 0.10198 | X109: 0.40022 | Y109: 0.2268605934 | Z109: 0.8159180003
U110: 17:10:00 | V110: 0.09963 | W110: 0.09963 | X110: 0.40022 | Y110: 0.2195894958 | Z110: 0.776214202
U111: 17:20:00 | V111: 0.09741 | W111: 0.09741 | X111: 0.40022 | Y111: 0.2123976721 | Z111: 0.7381146613
U112: 17:30:00 | V112: 0.09531 | W112: 0.09531 | X112: 0.40022 | Y112: 0.2052934537 | Z112: 0.7016328571
U113: 17:40:00 | V113: 0.09331 | W113: 0.09331 | X113: 0.40022 | Y113: 0.1982360324 | Z113: 0.6667826701
U114: 17:50:00 | V114: 0.09141 | W114: 0.09141 | X114: 0.40022 | Y114: 0.194600425 | Z114: 0.6330340554
U115: 18:00:00 | V115: 0.0896 | W115: 0.0896 | X115: 0.40022 | Y115: 0.1910913319 | Z115: 0.5998424192
U116: 18:10:00 | V116: 0.08788 | W116: 0.08788 | X116: 0.40022 | Y116: 0.1876338432 | Z116: 0.5672080665
U117: 18:20:00 | V117: 0.08624 | W117: 0.08624 | X117: 0.40022 | Y117: 0.184253761 | Z117: 0.5351376441
U118: 18:30:00 | V118: 0.08467 | W118: 0.08467 | X118: 0.40022 | Y118: 0.180925283 | Z118: 0.5036345559
U119: 18:40:00 | V119: 0.08317 | W119: 0.08317 | X119: 0.40022 | Y119: 0.1776484094 | Z119: 0.472704768
U120: 18:50:00 | V120: 0.08173 | W120: 0.08173 | X120: 0.40022 | Y120: 0.1736666944 | Z120: 0.4424752917
U121: 19:00:00 | V121: 0.08035 | W121: 0.08035 | X121: 0.40022 | Y121: 0.1578165808 | Z121: 0.4150044903
U122: 19:10:00 | V122: 0.07902 | W122: 0.07902 | X122: 0.40022 | Y122: 0.1447744098 | Z122: 0.3917794648
U123: 19:20:00 | V123: 0.07775 | W123: 0.07775 | X123: 0.40022 | Y123: 0.1339543121 | Z123: 0.3720023748
U124: 19:30:00 | V124: 0.07653 | W124: 0.07653 | X124: 0.40022 | Y124: 0.1248319796 | Z124: 0.3550554085
U125: 19:40:00 | V125: 0.07535 | W125: 0.07535 | X125: 0.40022 | Y125: 0.1172484272 | Z125: 0.3404283155
U126: 19:50:00 | V126: 0.07422 | W126: 0.07422 | X126: 0.40022 | Y126: 0.1106899068 | Z126: 0.327719937
U127: 20:00:00 | V127: 0.07312 | W127: 0.07312 | X127: 0.40022 | Y127: 0.1051693554 | Z127: 0.3166087053
U128: 20:10:00 | V128: 0.07207 | W128: 0.07207 | X128: 0.40022 | Y128: 0.100341864 | Z128: 0.306826886
U129: 20:20:00 | V129: 0.07105 | W129: 0.07105 | X129: 0.40022 | Y129: 0.09606224761 | Z129: 0.2981862192
U130: 20:30:00 | V130: 0.07007 | W130: 0.07007 | X130: 0.40022 | Y130: 0.0924271773 | Z130: 0.2905046909
U131: 20:40:00 | V131: 0.06912 | W131: 0.06912 | X131: 0.40022 | Y131: 0.08918430658 | Z131: 0.2836255313
U132: 20:50:00 | V132: 0.0682 | W132: 0.0682 | X132: 0.40022 | Y132: 0.08626475793 | Z132: 0.2774424398
U133: 21:00:00 | V133: 0.06731 | W133: 0.06731 | X133: 0.40022 | Y133: 0.08365936811 | Z133: 0.2718617707
U134: 21:10:00 | V134: 0.06644 | W134: 0.06644 | X134: 0.40022 | Y134: 0.08135972853 | Z134: 0.2667911064
U135: 21:20:00 | V135: 0.06561 | W135: 0.06561 | X135: 0.40022 | Y135: 0.07924751814 | Z135: 0.2621602015
U136: 21:30:00 | V136: 0.0648 | W136: 0.0648 | X136: 0.40022 | Y136: 0.07731851424 | Z136: 0.2579186827
U137: 21:40:00 | V137: 0.06401 | W137: 0.06401 | X137: 0.40022 | Y137: 0.0755687737 | Z137: 0.2540142577
U138: 21:50:00 | V138: 0.06325 | W138: 0.06325 | X138: 0.40022 | Y138: 0.07399464468 | Z138: 0.2503974871
U139: 22:00:00 | V139: 0.06251 | W139: 0.06251 | X139: 0.40022 | Y139: 0.07248531268 | Z139: 0.247037494
U140: 22:10:00 | V140: 0.06179 | W140: 0.06179 | X140: 0.40022 | Y140: 0.07109310463 | Z140: 0.2439112642
U141: 22:20:00 | V141: 0.06109 | W141: 0.06109 | X141: 0.40022 | Y141: 0.06981600224 | Z141: 0.2409876253
U142: 22:30:00 | V142: 0.06041 | W142: 0.06041 | X142: 0.40022 | Y142: 0.06865212339 | Z142: 0.2382360373
U143: 22:40:00 | V143: 0.05974 | W143: 0.05974 | X143: 0.40022 | Y143: 0.06749478495 | Z143: 0.2356419441
U144: 22:50:00 | V144: 0.0591 | W144: 0.0591 | X144: 0.40022 | Y144: 0.06644836591 | Z144: 0.2331927845
U145: 23:00:00 | V145: 0.05847 | W145: 0.05847 | X145: 0.40022 | Y145: 0.06551126001 | Z145: 0.2308593316
U146: 23:10:00 | V146: 0.05786 | W146: 0.05786 | X146: 0.40022 | Y146: 0.06452691771 | Z146: 0.2286363839
U147: 23:20:00 | V147: 0.05726 | W147: 0.05726 | X147: 0.40022 | Y147: 0.06365041099 | Z147: 0.2265189792
U148: 23:30:00 | V148: 0.05668 | W148: 0.05668 | X148: 0.40022 | Y148: 0.0627779093 | Z148: 0.2244938462
U149: 23:40:00 | V149: 0.05611 | W149: 0.05611 | X149: 0.40022 | Y149: 0.06196040636 | Z149: 0.2225562815
U150: 23:50:00 | V150: 0.05556 | W150: 0.05556 | X150: 0.40022 | Y150: 0.06119724814 | Z150: 0.2206934186
U151: 1 | V151: 0.05502 | W151: 0.05502 | X151: 0.40022 | Y151: 0.06043724914 | Z151: 0.2189007974

Sheet 04-②調節計算（2段）
B2: 入 力 条 件
B4: 設 定 調 整 池 諸 元 | K4: 行 為 後 流 入 量 | U4: 計 算 結 果 （時 系 列）
B6: 水深-容量 | G6: ■上段オリフィス | K6: 行為後ピーク流入量 | M6: =MAX('02流出計算（QT-Sグラフ）'!$J$5:$J$149) -> 1.80097 | N6: m3/s | U6: 時刻 | V6: 行為後流入量 | W6: 浸透考慮後流入量 | X6: 許容放流量 | Y6: 調節後放流量 | Z6: 調整池水位
B7: No | C7: 水深H（m） | D7: 容量V（m3） | G7: 放流口形状 | K7: （浸透考慮後） | U7: 00:00:00 | V7: 0 | W7: 0 | X7: 0.01933 | Y7: 0 | Z7: 0
B8: 1 | C8: 0 | D8: 0 | F8: 1 | G8: （口径） | U8: 00:10:00 | V8: 0.0021 | W8: 0 | X8: 0.01933 | Y8: 0 | Z8: 0
B9: 2 | C9: 3 | D9: 300 | K9: 許容放流量（計） | M9: =MAX('01流出計算（Q-Tグラフ）'!$I$5:$I$149) -> 0.40022 | N9: m3/s | U9: 00:20:00 | V9: 0.00217 | W9: 0 | X9: 0.01933 | Y9: 0 | Z9: 0
B10: 3 | G10: 直径 | H10: 0.1 | I10: m | U10: 00:30:00 | V10: 0.00217 | W10: 0 | X10: 0.01933 | Y10: 0 | Z10: 0
B11: 4 | P11: 計 算 結 果 | U11: 00:40:00 | V11: 0.00217 | W11: 0 | X11: 0.01933 | Y11: 0 | Z11: 0
B12: 5 | K12: 許容放流量（上段） | N12: m3/s | U12: 00:50:00 | V12: 0.00225 | W12: 0 | X12: 0.01933 | Y12: 0 | Z12: 0
B13: 6 | G13: 高さ | I13: m | U13: 01:00:00 | V13: 0.00225 | W13: 0 | X13: 0.01933 | Y13: 0 | Z13: 0
B14: 7 | G14: 幅 | I14: m | P14: 総合評価 | R14: O.K | U14: 01:10:00 | V14: 0.00225 | W14: 0 | X14: 0.01933 | Y14: 0 | Z14: 0
B15: 8 | K15: 許容放流量（下段） | M15: =M9-M12 -> 0.40022 | N15: m3/s | U15: 01:20:00 | V15: 0.00233 | W15: 0 | X15: 0.01933 | Y15: 0 | Z15: 0
B16: 9 | G16: （管底位置） | P16: 放流量評価 | R16: 許容放流量以下 | U16: 01:30:00 | V16: 0.00233 | W16: 0 | X16: 0.01933 | Y16: 0 | Z16: 0
B17: 10 | G17: 池底高から | H17: 1 | I17: m | U17: 01:40:00 | V17: 0.00233 | W17: 0 | X17: 0.01933 | Y17: 0 | Z17: 0
B18: 11 | P18: 池の容量不足 | R18: 無 | U18: 01:50:00 | V18: 0.0024 | W18: 0 | X18: 0.01933 | Y18: 0 | Z18: 0
B19: 12 | G19: ■下段オリフィス | U19: 02:00:00 | V19: 0.0024 | W19: 0 | X19: 0.01933 | Y19: 0 | Z19: 0
B20: 13 | G20: 放流口形状 | U20: 02:10:00 | V20: 0.00247 | W20: 0 | X20: 0.01933 | Y20: 0 | Z20: 0
B21: 14 | G21: （口径） | P21: 最大放流量（上段+下段） | R21: 0.002445452029 | S21: m3/s | U21: 02:20:00 | V21: 0.00247 | W21: 0 | X21: 0.01933 | Y21: 0 | Z21: 0
B22: 15 | F22: 2 | U22: 02:30:00 | V22: 0.00247 | W22: 0 | X22: 0.01933 | Y22: 0 | Z22: 0
B23: 16 | G23: 直径 | I23: m | P23: 最大放流量（下段） | R23: 0.002445452029 | S23: m3/s | U23: 02:40:00 | V23: 0.00255 | W23: 0 | X23: 0.01933 | Y23: 0 | Z23: 0
B24: 17 | U24: 02:50:00 | V24: 0.00255 | W24: 0 | X24: 0.01933 | Y24: 0 | Z24: 0
B25: 18 | P25: 池内最大水深 | R25: 0.8524618564 | S25: m | U25: 03:00:00 | V25: 0.00262 | W25: 0 | X25: 0.01933 | Y25: 0 | Z25: 0
B26: 19 | G26: 高さ | H26: 0.01 | I26: m | U26: 03:10:00 | V26: 0.00262 | W26: 0 | X26: 0.01933 | Y26: 0 | Z26: 0
B27: 20 | G27: 幅 | H27: 0.1 | I27: m | P27: 池内最大ボリューム | R27: 85.24618564 | S27: m3 | U27: 03:20:00 | V27: 0.0027 | W27: 0 | X27: 0.01933 | Y27: 0 | Z27: 0
B28: 21 | U28: 03:30:00 | V28: 0.0027 | W28: 0 | X28: 0.01933 | Y28: 0 | Z28: 0
B29: 22 | G29: （管底位置） | P29: 許 可 申 請 図 書 の 作 成 | U29: 03:40:00 | V29: 0.00278 | W29: 0 | X29: 0.01933 | Y29: 0 | Z29: 0
B30: 23 | G30: 池底高から | H30: 0 | I30: m | U30: 03:50:00 | V30: 0.00278 | W30: 0 | X30: 0.01933 | Y30: 0 | Z30: 0
B31: 24 | P31: ■申請図書様式の保存場所 | U31: 04:00:00 | V31: 0.00285 | W31: 0 | X31: 0.01933 | Y31: 0 | Z31: 0
B32: 25 | P32: C:\【様式】許可申請図書.xls | U32: 04:10:00 | V32: 0.00292 | W32: 0 | X32: 0.01933 | Y32: 0 | Z32: 0
B33: 26 | U33: 04:20:00 | V33: 0.00292 | W33: 0 | X33: 0.01933 | Y33: 0 | Z33: 0
B34: 27 | U34: 04:30:00 | V34: 0.003 | W34: 0 | X34: 0.01933 | Y34: 0 | Z34: 0
B35: 28 | U35: 04:40:00 | V35: 0.003 | W35: 0 | X35: 0.01933 | Y35: 0 | Z35: 0
B36: 29 | U36: 04:50:00 | V36: 0.00308 | W36: 0 | X36: 0.01933 | Y36: 0 | Z36: 0
B37: 30 | U37: 05:00:00 | V37: 0.00315 | W37: 0 | X37: 0.01933 | Y37: 0 | Z37: 0
B38: 31 | U38: 05:10:00 | V38: 0.00322 | W38: 0 | X38: 0.01933 | Y38: 0 | Z38: 0
B39: 32 | U39: 05:20:00 | V39: 0.00322 | W39: 0 | X39: 0.01933 | Y39: 0 | Z39: 0
B40: 33 | U40: 05:30:00 | V40: 0.0033 | W40: 0 | X40: 0.01933 | Y40: 0 | Z40: 0
B41: 34 | U41: 05:40:00 | V41: 0.00337 | W41: 0 | X41: 0.01933 | Y41: 0 | Z41: 0
B42: 35 | U42: 05:50:00 | V42: 0.00345 | W42: 0 | X42: 0.01933 | Y42: 0 | Z42: 0
B43: 36 | U43: 06:00:00 | V43: 0.00353 | W43: 0 | X43: 0.01933 | Y43: 0 | Z43: 0
B44: 37 | U44: 06:10:00 | V44: 0.0036 | W44: 0 | X44: 0.01933 | Y44: 0 | Z44: 0
B45: 38 | U45: 06:20:00 | V45: 0.00368 | W45: 0 | X45: 0.01933 | Y45: 0 | Z45: 0
B46: 39 | U46: 06:30:00 | V46: 0.00375 | W46: 0 | X46: 0.01933 | Y46: 0 | Z46: 0
B47: 40 | U47: 06:40:00 | V47: 0.00382 | W47: 0 | X47: 0.01933 | Y47: 0 | Z47: 0
B48: 41 | U48: 06:50:00 | V48: 0.0039 | W48: 0 | X48: 0.01933 | Y48: 0 | Z48: 0
B49: 42 | U49: 07:00:00 | V49: 0.00405 | W49: 0 | X49: 0.01933 | Y49: 0 | Z49: 0
B50: 43 | U50: 07:10:00 | V50: 0.00412 | W50: 0 | X50: 0.01933 | Y50: 0 | Z50: 0
B51: 44 | U51: 07:20:00 | V51: 0.0042 | W51: 0 | X51: 0.01933 | Y51: 0 | Z51: 0
B52: 45 | U52: 07:30:00 | V52: 0.00435 | W52: 0 | X52: 0.01933 | Y52: 0 | Z52: 0
B53: 46 | U53: 07:40:00 | V53: 0.0045 | W53: 0 | X53: 0.01933 | Y53: 0 | Z53: 0
B54: 47 | U54: 07:50:00 | V54: 0.00458 | W54: 0 | X54: 0.01933 | Y54: 0 | Z54: 0
B55: 48 | U55: 08:00:00 | V55: 0.00472 | W55: 0 | X55: 0.01933 | Y55: 0 | Z55: 0
B56: 49 | U56: 08:10:00 | V56: 0.00488 | W56: 0 | X56: 0.01933 | Y56: 0 | Z56: 0
B57: 50 | U57: 08:20:00 | V57: 0.00503 | W57: 0 | X57: 0.01933 | Y57: 0 | Z57: 0
U58: 08:30:00 | V58: 0.00525 | W58: 0 | X58: 0.01933 | Y58: 0 | Z58: 0
U59: 08:40:00 | V59: 0.0054 | W59: 0 | X59: 0.01933 | Y59: 0 | Z59: 0
U60: 08:50:00 | V60: 0.00562 | W60: 0 | X60: 0.01933 | Y60: 0 | Z60: 0
U61: 09:00:00 | V61: 0.00585 | W61: 0 | X61: 0.01933 | Y61: 0 | Z61: 0
U62: 09:10:00 | V62: 0.00615 | W62: 0 | X62: 0.01933 | Y62: 0 | Z62: 0
U63: 09:20:00 | V63: 0.00638 | W63: 0 | X63: 0.01933 | Y63: 0 | Z63: 0
U64: 09:30:00 | V64: 0.00675 | W64: 0 | X64: 0.01933 | Y64: 0 | Z64: 0
U65: 09:40:00 | V65: 0.00705 | W65: 0 | X65: 0.01933 | Y65: 0 | Z65: 0
U66: 09:50:00 | V66: 0.00742 | W66: 0 | X66: 0.01933 | Y66: 0 | Z66: 0
U67: 10:00:00 | V67: 0.00795 | W67: 0 | X67: 0.01933 | Y67: 0 | Z67: 0
U68: 10:10:00 | V68: 0.0084 | W68: 0 | X68: 0.01933 | Y68: 0 | Z68: 0
U69: 10:20:00 | V69: 0.00908 | W69: 0 | X69: 0.01933 | Y69: 0 | Z69: 0
U70: 10:30:00 | V70: 0.00975 | W70: 0 | X70: 0.01933 | Y70: 0 | Z70: 0
U71: 10:40:00 | V71: 0.01065 | W71: 0 | X71: 0.01933 | Y71: 0 | Z71: 0
U72: 10:50:00 | V72: 0.0117 | W72: 0 | X72: 0.01933 | Y72: 0 | Z72: 0
U73: 11:00:00 | V73: 0.01305 | W73: 0 | X73: 0.01933 | Y73: 0 | Z73: 0
U74: 11:10:00 | V74: 0.01485 | W74: 0 | X74: 0.01933 | Y74: 0 | Z74: 0
U75: 11:20:00 | V75: 0.01733 | W75: 0 | X75: 0.01933 | Y75: 0 | Z75: 0
U76: 11:30:00 | V76: 0.02092 | W76: 0 | X76: 0.01933 | Y76: 0 | Z76: 0
U77: 11:40:00 | V77: 0.02692 | W77: 0 | X77: 0.01933 | Y77: 0 | Z77: 0
U78: 11:50:00 | V78: 0.03915 | W78: 0 | X78: 0.01933 | Y78: 0 | Z78: 0
U79: 12:00:00 | V79: 0.087 | W79: 0.03050871565 | X79: 0.01933 | Y79: 0.0007706621798 | Z79: 0.08921416041
U80: 12:10:00 | V80: 0.0522 | W80: 0.045709 | X80: 0.01933 | Y80: 0.001469630813 | Z80: 0.3111464284
U81: 12:20:00 | V81: 0.0318 | W81: 0.025304 | X81: 0.01933 | Y81: 0.001895424507 | Z81: 0.5140902624
U82: 12:30:00 | V82: 0.02355 | W82: 0.017051 | X82: 0.01933 | Y82: 0.002098572171 | Z82: 0.6291732724
U83: 12:40:00 | V83: 0.01897 | W83: 0.012469 | X83: 0.01933 | Y83: 0.00222207064 | Z83: 0.704771344
U84: 12:50:00 | V84: 0.01598 | W84: 0.009478 | X84: 0.01933 | Y84: 0.00230343563 | Z84: 0.7570358251
U85: 13:00:00 | V85: 0.01388 | W85: 0.007378 | X85: 0.01933 | Y85: 0.002358858652 | Z85: 0.7936169423
U86: 13:10:00 | V86: 0.01237 | W86: 0.005868 | X86: 0.01933 | Y86: 0.002396622844 | Z86: 0.8190884978
U87: 13:20:00 | V87: 0.01118 | W87: 0.004678 | X87: 0.01933 | Y87: 0.002421827475 | Z87: 0.8362711469
U88: 13:30:00 | V88: 0.0102 | W88: 0.003698 | X88: 0.01933 | Y88: 0.002437249242 | Z88: 0.8468219167
U89: 13:40:00 | V89: 0.00938 | W89: 0.002878 | X89: 0.01933 | Y89: 0.002444659414 | Z89: 0.8519041907
U90: 13:50:00 | V90: 0.0087 | W90: 0.002198 | X90: 0.01933 | Y90: 0.002445452029 | Z90: 0.8524618564
U91: 14:00:00 | V91: 0.00818 | W91: 0.001678 | X91: 0.01933 | Y91: 0.00244095714 | Z91: 0.8494306289
U92: 14:10:00 | V92: 0.00765 | W92: 0.001148 | X92: 0.01933 | Y92: 0.002431942438 | Z92: 0.8432899302
U93: 14:20:00 | V93: 0.00728 | W93: 0.000778 | X93: 0.01933 | Y93: 0.002419425632 | Z93: 0.834513826
U94: 14:30:00 | V94: 0.0069 | W94: 0.000398 | X94: 0.01933 | Y94: 0.002403352005 | Z94: 0.823573493
U95: 14:40:00 | V95: 0.00652 | W95: 1.8e-05 | X95: 0.01933 | Y95: 0.002383920599 | Z95: 0.8104596752
U96: 14:50:00 | V96: 0.00622 | W96: 0 | X96: 0.01933 | Y96: 0.002362962975 | Z96: 0.7962730245
U97: 15:00:00 | V97: 0.006 | W97: 0 | X97: 0.01933 | Y97: 0.002341817804 | Z97: 0.7821586822
U98: 15:10:00 | V98: 0.00578 | W98: 0 | X98: 0.01933 | Y98: 0.002320479956 | Z98: 0.7681717889
U99: 15:20:00 | V99: 0.00555 | W99: 0 | X99: 0.01933 | Y99: 0.002299505993 | Z99: 0.754311831
U100: 15:30:00 | V100: 0.00532 | W100: 0 | X100: 0.01933 | Y100: 0.002278338956 | Z100: 0.7405782962
U101: 15:40:00 | V101: 0.00518 | W101: 0 | X101: 0.01933 | Y101: 0.002256973412 | Z101: 0.7269723591
U102: 15:50:00 | V102: 0.00495 | W102: 0 | X102: 0.01933 | Y102: 0.002235981564 | Z102: 0.7134934942
U103: 16:00:00 | V103: 0.0048 | W103: 0 | X103: 0.01933 | Y103: 0.002214790763 | Z103: 0.7001411772
U104: 16:10:00 | V104: 0.00465 | W104: 0 | X104: 0.01933 | Y104: 0.002193689743 | Z104: 0.6869157357
U105: 16:20:00 | V105: 0.0045 | W105: 0 | X105: 0.01933 | Y105: 0.002172383771 | Z105: 0.6738175151
U106: 16:30:00 | V106: 0.00443 | W106: 0 | X106: 0.01933 | Y106: 0.00215116708 | Z106: 0.6608468626
U107: 16:40:00 | V107: 0.00427 | W107: 0 | X107: 0.01933 | Y107: 0.002130042336 | Z107: 0.6480032343
U108: 16:50:00 | V108: 0.0042 | W108: 0 | X108: 0.01933 | Y108: 0.002109012302 | Z108: 0.6352860704
U109: 17:00:00 | V109: 0.00405 | W109: 0 | X109: 0.01933 | Y109: 0.002087770445 | Z109: 0.6226957222
U110: 17:10:00 | V110: 0.00398 | W110: 0 | X110: 0.01933 | Y110: 0.00206662284 | Z110: 0.6102325423
U111: 17:20:00 | V111: 0.0039 | W111: 0 | X111: 0.01933 | Y111: 0.002045256583 | Z111: 0.597896904
U112: 17:30:00 | V112: 0.00382 | W112: 0 | X112: 0.01933 | Y112: 0.002024303092 | Z112: 0.585688225
U113: 17:40:00 | V113: 0.00368 | W113: 0 | X113: 0.01933 | Y113: 0.002003130431 | Z113: 0.5736059245
U114: 17:50:00 | V114: 0.0036 | W114: 0 | X114: 0.01933 | Y114: 0.001981731576 | Z114: 0.5616513384
U115: 18:00:00 | V115: 0.00353 | W115: 0 | X115: 0.01933 | Y115: 0.001960758154 | Z115: 0.5498238692
U116: 18:10:00 | V116: 0.00345 | W116: 0 | X116: 0.01933 | Y116: 0.001939557949 | Z116: 0.5381229209
U117: 18:20:00 | V117: 0.00337 | W117: 0 | X117: 0.01933 | Y117: 0.001918460198 | Z117: 0.5265488665
U118: 18:30:00 | V118: 0.00337 | W118: 0 | X118: 0.01933 | Y118: 0.001897127835 | Z118: 0.5151021024
U119: 18:40:00 | V119: 0.0033 | W119: 0 | X119: 0.01933 | Y119: 0.001875897254 | Z119: 0.5037830271
U120: 18:50:00 | V120: 0.00322 | W120: 0 | X120: 0.01933 | Y120: 0.001854771949 | Z120: 0.4925910195
U121: 19:00:00 | V121: 0.00315 | W121: 0 | X121: 0.01933 | Y121: 0.00183375556 | Z121: 0.481525437
U122: 19:10:00 | V122: 0.00308 | W122: 0 | X122: 0.01933 | Y122: 0.001812495496 | Z122: 0.4705866838
U123: 19:20:00 | V123: 0.00308 | W123: 0 | X123: 0.01933 | Y123: 0.001791343737 | Z123: 0.4597751661
U124: 19:30:00 | V124: 0.003 | W124: 0 | X124: 0.01933 | Y124: 0.001770304165 | Z124: 0.4490902224
U125: 19:40:00 | V125: 0.00292 | W125: 0 | X125: 0.01933 | Y125: 0.001749011518 | Z125: 0.4385322754
U126: 19:50:00 | V126: 0.00292 | W126: 0 | X126: 0.01933 | Y126: 0.001727830355 | Z126: 0.4281017498
U127: 20:00:00 | V127: 0.00285 | W127: 0 | X127: 0.01933 | Y127: 0.001706764826 | Z127: 0.4177979642
U128: 20:10:00 | V128: 0.00285 | W128: 0 | X128: 0.01933 | Y128: 0.001685436029 | Z128: 0.4076213616
U129: 20:20:00 | V129: 0.00278 | W129: 0 | X129: 0.01933 | Y129: 0.001664222052 | Z129: 0.3975723874
U130: 20:30:00 | V130: 0.00278 | W130: 0 | X130: 0.01933 | Y130: 0.001643127342 | Z130: 0.3876503392
U131: 20:40:00 | V131: 0.0027 | W131: 0 | X131: 0.01933 | Y131: 0.001622156551 | Z131: 0.3778544875
U132: 20:50:00 | V132: 0.0027 | W132: 0 | X132: 0.01933 | Y132: 0.001600911081 | Z132: 0.3681852846
U133: 21:00:00 | V133: 0.00262 | W133: 0 | X133: 0.01933 | Y133: 0.001579788814 | Z133: 0.358643185
U134: 21:10:00 | V134: 0.00262 | W134: 0 | X134: 0.01933 | Y134: 0.001558380281 | Z134: 0.3492286777
U135: 21:20:00 | V135: 0.00255 | W135: 0 | X135: 0.01933 | Y135: 0.001537093849 | Z135: 0.3399422553
U136: 21:30:00 | V136: 0.00255 | W136: 0 | X136: 0.01933 | Y136: 0.001515934659 | Z136: 0.3307831698
U137: 21:40:00 | V137: 0.00247 | W137: 0 | X137: 0.01933 | Y137: 0.001494908115 | Z137: 0.3217506414
U138: 21:50:00 | V138: 0.00247 | W138: 0 | X138: 0.01933 | Y138: 0.001474019894 | Z138: 0.3128438574
U139: 22:00:00 | V139: 0.0024 | W139: 0 | X139: 0.01933 | Y139: 0.001452831382 | Z139: 0.3040633036
U140: 22:10:00 | V140: 0.0024 | W140: 0 | X140: 0.01933 | Y140: 0.001431329242 | Z140: 0.2954108217
U141: 22:20:00 | V141: 0.0024 | W141: 0 | X141: 0.01933 | Y141: 0.001410415456 | Z141: 0.2868855876
U142: 22:30:00 | V142: 0.00233 | W142: 0 | X142: 0.01933 | Y142: 0.001389186855 | Z142: 0.2784867807
U143: 22:40:00 | V143: 0.00233 | W143: 0 | X143: 0.01933 | Y143: 0.001368101045 | Z143: 0.270214917
U144: 22:50:00 | V144: 0.00233 | W144: 0 | X144: 0.01933 | Y144: 0.001346685123 | Z144: 0.2620705585
U145: 23:00:00 | V145: 0.00225 | W145: 0 | X145: 0.01933 | Y145: 0.001325897868 | Z145: 0.2540528095
U146: 23:10:00 | V146: 0.00225 | W146: 0 | X146: 0.01933 | Y146: 0.001304284286 | Z146: 0.2461622631
U147: 23:20:00 | V147: 0.00225 | W147: 0 | X147: 0.01933 | Y147: 0.001283313613 | Z147: 0.2383994694
U148: 23:30:00 | V148: 0.00217 | W148: 0 | X148: 0.01933 | Y148: 0.001261994515 | Z148: 0.230763545
U149: 23:40:00 | V149: 0.00217 | W149: 0 | X149: 0.01933 | Y149: 0.001240829753 | Z149: 0.2232550722
U150: 23:50:00 | V150: 0.00217 | W150: 0 | X150: 0.01933 | Y150: 0.00121982736 | Z150: 0.2158731008
U151: 1 | V151: 0.0021 | W151: 0 | X151: 0.01933 | Y151: 0.001198456967 | Z151: 0.2086182478

Sheet 04-③調節計算（ポンプ）
B2: 入 力 条 件
B4: 設 定 調 整 池 諸 元 | F4: 放 流 ポ ン プ 諸 元 | J4: 行 為 後 流 入 量 | U4: 計 算 結 果 （時 系 列）
B6: 水深-容量 | F6: 水深-ポンプ | J6: 行為後ピーク流入量 | L6: =MAX('02流出計算（QT-Sグラフ）'!$J$5:$J$149) -> 1.80097 | M6: m3/s | U6: 時刻 | V6: 行為後流入量 | W6: 浸透考慮後流入量 | X6: 許容放流量 | Y6: 調節後放流量 | Z6: 調整池水位
B7: No | C7: 水深H（m） | D7: 容量V（m3） | F7: No | G7: 水深H（m） | H7: ポンプ規模Q(m3/s) | J7: （浸透考慮後） | U7: 00:00:00 | V7: 0 | W7: 0 | X7: 0.01933 | Y7: 0 | Z7: 0
B8: 1 | C8: 0 | D8: 0 | F8: 1 | G8: 0 | H8: 0 | U8: 00:10:00 | V8: 0.0021 | W8: 0 | X8: 0.01933 | Y8: 0 | Z8: 0
B9: 2 | C9: 3 | D9: 90 | F9: 2 | G9: 3 | H9: 0.015 | J9: 許容放流量 | L9: =MAX('01流出計算（Q-Tグラフ）'!$I$5:$I$149) -> 0.40022 | M9: m3/s | U9: 00:20:00 | V9: 0.00217 | W9: 0 | X9: 0.01933 | Y9: 0 | Z9: 0
B10: 3 | F10: 3 | J10: （行為前ピーク流入量） | U10: 00:30:00 | V10: 0.00217 | W10: 0 | X10: 0.01933 | Y10: 0 | Z10: 0
B11: 4 | F11: 4 | P11: 計 算 結 果 | U11: 00:40:00 | V11: 0.00217 | W11: 0 | X11: 0.01933 | Y11: 0 | Z11: 0
B12: 5 | F12: 5 | U12: 00:50:00 | V12: 0.00225 | W12: 0 | X12: 0.01933 | Y12: 0 | Z12: 0
B13: 6 | F13: 6 | U13: 01:00:00 | V13: 0.00225 | W13: 0 | X13: 0.01933 | Y13: 0 | Z13: 0
B14: 7 | F14: 7 | P14: 総合評価 | R14: O.K | U14: 01:10:00 | V14: 0.00225 | W14: 0 | X14: 0.01933 | Y14: 0 | Z14: 0
B15: 8 | F15: 8 | U15: 01:20:00 | V15: 0.00233 | W15: 0 | X15: 0.01933 | Y15: 0 | Z15: 0
B16: 9 | F16: 9 | P16: 放流量評価 | R16: 許容放流量以下 | U16: 01:30:00 | V16: 0.00233 | W16: 0 | X16: 0.01933 | Y16: 0 | Z16: 0
B17: 10 | F17: 10 | U17: 01:40:00 | V17: 0.00233 | W17: 0 | X17: 0.01933 | Y17: 0 | Z17: 0
B18: 11 | F18: 11 | P18: 池の容量不足 | R18: 無 | U18: 01:50:00 | V18: 0.0024 | W18: 0 | X18: 0.01933 | Y18: 0 | Z18: 0
B19: 12 | F19: 12 | U19: 02:00:00 | V19: 0.0024 | W19: 0 | X19: 0.01933 | Y19: 0 | Z19: 0
B20: 13 | F20: 13 | U20: 02:10:00 | V20: 0.00247 | W20: 0 | X20: 0.01933 | Y20: 0 | Z20: 0
B21: 14 | F21: 14 | P21: 最大放流量 | R21: 0.00978515625 | S21: m3/s | U21: 02:20:00 | V21: 0.00247 | W21: 0 | X21: 0.01933 | Y21: 0 | Z21: 0
B22: 15 | F22: 15 | U22: 02:30:00 | V22: 0.00247 | W22: 0 | X22: 0.01933 | Y22: 0 | Z22: 0
B23: 16 | F23: 16 | P23: 池内最大水深 | R23: 1.957063288 | S23: m | U23: 02:40:00 | V23: 0.00255 | W23: 0 | X23: 0.01933 | Y23: 0 | Z23: 0
B24: 17 | F24: 17 | U24: 02:50:00 | V24: 0.00255 | W24: 0 | X24: 0.01933 | Y24: 0 | Z24: 0
B25: 18 | F25: 18 | P25: 池内最大ボリューム | R25: 58.71189863 | S25: m3 | U25: 03:00:00 | V25: 0.00262 | W25: 0 | X25: 0.01933 | Y25: 0 | Z25: 0
B26: 19 | F26: 19 | U26: 03:10:00 | V26: 0.00262 | W26: 0 | X26: 0.01933 | Y26: 0 | Z26: 0
B27: 20 | F27: 20 | U27: 03:20:00 | V27: 0.0027 | W27: 0 | X27: 0.01933 | Y27: 0 | Z27: 0
B28: 21 | F28: 21 | U28: 03:30:00 | V28: 0.0027 | W28: 0 | X28: 0.01933 | Y28: 0 | Z28: 0
B29: 22 | F29: 22 | P29: 許 可 申 請 図 書 の 作 成 | U29: 03:40:00 | V29: 0.00278 | W29: 0 | X29: 0.01933 | Y29: 0 | Z29: 0
B30: 23 | F30: 23 | U30: 03:50:00 | V30: 0.00278 | W30: 0 | X30: 0.01933 | Y30: 0 | Z30: 0
B31: 24 | F31: 24 | P31: ■申請図書様式の保存場所 | U31: 04:00:00 | V31: 0.00285 | W31: 0 | X31: 0.01933 | Y31: 0 | Z31: 0
B32: 25 | F32: 25 | P32: C:\【様式】許可申請図書.xls | U32: 04:10:00 | V32: 0.00292 | W32: 0 | X32: 0.01933 | Y32: 0 | Z32: 0
B33: 26 | F33: 26 | U33: 04:20:00 | V33: 0.00292 | W33: 0 | X33: 0.01933 | Y33: 0 | Z33: 0
B34: 27 | F34: 27 | U34: 04:30:00 | V34: 0.003 | W34: 0 | X34: 0.01933 | Y34: 0 | Z34: 0
B35: 28 | F35: 28 | U35: 04:40:00 | V35: 0.003 | W35: 0 | X35: 0.01933 | Y35: 0 | Z35: 0
B36: 29 | F36: 29 | U36: 04:50:00 | V36: 0.00308 | W36: 0 | X36: 0.01933 | Y36: 0 | Z36: 0
B37: 30 | F37: 30 | U37: 05:00:00 | V37: 0.00315 | W37: 0 | X37: 0.01933 | Y37: 0 | Z37: 0
B38: 31 | F38: 31 | U38: 05:10:00 | V38: 0.00322 | W38: 0 | X38: 0.01933 | Y38: 0 | Z38: 0
B39: 32 | F39: 32 | U39: 05:20:00 | V39: 0.00322 | W39: 0 | X39: 0.01933 | Y39: 0 | Z39: 0
B40: 33 | F40: 33 | U40: 05:30:00 | V40: 0.0033 | W40: 0 | X40: 0.01933 | Y40: 0 | Z40: 0
B41: 34 | F41: 34 | U41: 05:40:00 | V41: 0.00337 | W41: 0 | X41: 0.01933 | Y41: 0 | Z41: 0
B42: 35 | F42: 35 | U42: 05:50:00 | V42: 0.00345 | W42: 0 | X42: 0.01933 | Y42: 0 | Z42: 0
B43: 36 | F43: 36 | U43: 06:00:00 | V43: 0.00353 | W43: 0 | X43: 0.01933 | Y43: 0 | Z43: 0
B44: 37 | F44: 37 | U44: 06:10:00 | V44: 0.0036 | W44: 0 | X44: 0.01933 | Y44: 0 | Z44: 0
B45: 38 | F45: 38 | U45: 06:20:00 | V45: 0.00368 | W45: 0 | X45: 0.01933 | Y45: 0 | Z45: 0
B46: 39 | F46: 39 | U46: 06:30:00 | V46: 0.00375 | W46: 0 | X46: 0.01933 | Y46: 0 | Z46: 0
B47: 40 | F47: 40 | U47: 06:40:00 | V47: 0.00382 | W47: 0 | X47: 0.01933 | Y47: 0 | Z47: 0
B48: 41 | F48: 41 | U48: 06:50:00 | V48: 0.0039 | W48: 0 | X48: 0.01933 | Y48: 0 | Z48: 0
B49: 42 | F49: 42 | U49: 07:00:00 | V49: 0.00405 | W49: 0 | X49: 0.01933 | Y49: 0 | Z49: 0
B50: 43 | F50: 43 | U50: 07:10:00 | V50: 0.00412 | W50: 0 | X50: 0.01933 | Y50: 0 | Z50: 0
B51: 44 | F51: 44 | U51: 07:20:00 | V51: 0.0042 | W51: 0 | X51: 0.01933 | Y51: 0 | Z51: 0
B52: 45 | F52: 45 | U52: 07:30:00 | V52: 0.00435 | W52: 0 | X52: 0.01933 | Y52: 0 | Z52: 0
B53: 46 | F53: 46 | U53: 07:40:00 | V53: 0.0045 | W53: 0 | X53: 0.01933 | Y53: 0 | Z53: 0
B54: 47 | F54: 47 | U54: 07:50:00 | V54: 0.00458 | W54: 0 | X54: 0.01933 | Y54: 0 | Z54: 0
B55: 48 | F55: 48 | U55: 08:00:00 | V55: 0.00472 | W55: 0 | X55: 0.01933 | Y55: 0 | Z55: 0
B56: 49 | F56: 49 | U56: 08:10:00 | V56: 0.00488 | W56: 0 | X56: 0.01933 | Y56: 0 | Z56: 0
B57: 50 | F57: 50 | U57: 08:20:00 | V57: 0.00503 | W57: 0 | X57: 0.01933 | Y57: 0 | Z57: 0
U58: 08:30:00 | V58: 0.00525 | W58: 0 | X58: 0.01933 | Y58: 0 | Z58: 0
U59: 08:40:00 | V59: 0.0054 | W59: 0 | X59: 0.01933 | Y59: 0 | Z59: 0
U60: 08:50:00 | V60: 0.00562 | W60: 0 | X60: 0.01933 | Y60: 0 | Z60: 0
U61: 09:00:00 | V61: 0.00585 | W61: 0 | X61: 0.01933 | Y61: 0 | Z61: 0
U62: 09:10:00 | V62: 0.00615 | W62: 0 | X62: 0.01933 | Y62: 0 | Z62: 0
U63: 09:20:00 | V63: 0.00638 | W63: 0 | X63: 0.01933 | Y63: 0 | Z63: 0
U64: 09:30:00 | V64: 0.00675 | W64: 0 | X64: 0.01933 | Y64: 0 | Z64: 0
U65: 09:40:00 | V65: 0.00705 | W65: 0 | X65: 0.01933 | Y65: 0 | Z65: 0
U66: 09:50:00 | V66: 0.00742 | W66: 0 | X66: 0.01933 | Y66: 0 | Z66: 0
U67: 10:00:00 | V67: 0.00795 | W67: 0 | X67: 0.01933 | Y67: 0 | Z67: 0
U68: 10:10:00 | V68: 0.0084 | W68: 0 | X68: 0.01933 | Y68: 0 | Z68: 0
U69: 10:20:00 | V69: 0.00908 | W69: 0 | X69: 0.01933 | Y69: 0 | Z69: 0
U70: 10:30:00 | V70: 0.00975 | W70: 0 | X70: 0.01933 | Y70: 0 | Z70: 0
U71: 10:40:00 | V71: 0.01065 | W71: 0 | X71: 0.01933 | Y71: 0 | Z71: 0
U72: 10:50:00 | V72: 0.0117 | W72: 0 | X72: 0.01933 | Y72: 0 | Z72: 0
U73: 11:00:00 | V73: 0.01305 | W73: 0 | X73: 0.01933 | Y73: 0 | Z73: 0
U74: 11:10:00 | V74: 0.01485 | W74: 0 | X74: 0.01933 | Y74: 0 | Z74: 0
U75: 11:20:00 | V75: 0.01733 | W75: 0 | X75: 0.01933 | Y75: 0 | Z75: 0
U76: 11:30:00 | V76: 0.02092 | W76: 0 | X76: 0.01933 | Y76: 0 | Z76: 0
U77: 11:40:00 | V77: 0.02692 | W77: 0 | X77: 0.01933 | Y77: 0 | Z77: 0
U78: 11:50:00 | V78: 0.03915 | W78: 0 | X78: 0.01933 | Y78: 0 | Z78: 0
U79: 12:00:00 | V79: 0.087 | W79: 0.03050871565 | X79: 0.01933 | Y79: 0.001452941895 | Z79: 0.2905577376
U80: 12:10:00 | V80: 0.0522 | W80: 0.045709 | X80: 0.01933 | Y80: 0.004943847656 | Z80: 0.9887669986
U81: 12:20:00 | V81: 0.0318 | W81: 0.025304 | X81: 0.01933 | Y81: 0.007854309082 | Z81: 1.570915431
U82: 12:30:00 | V82: 0.02355 | W82: 0.017051 | X82: 0.01933 | Y82: 0.00912322998 | Z82: 1.824690041
U83: 12:40:00 | V83: 0.01897 | W83: 0.012469 | X83: 0.01933 | Y83: 0.009660644531 | Z83: 1.932051295
U84: 12:50:00 | V84: 0.01598 | W84: 0.009478 | X84: 0.01933 | Y84: 0.00978515625 | Z84: 1.957063288
U85: 13:00:00 | V85: 0.01388 | W85: 0.007378 | X85: 0.01933 | Y85: 0.009656066895 | Z85: 1.931211056
U86: 13:10:00 | V86: 0.01237 | W86: 0.005868 | X86: 0.01933 | Y86: 0.009366760254 | Z86: 1.873442785
U87: 13:20:00 | V87: 0.01118 | W87: 0.004678 | X87: 0.01933 | Y87: 0.008977661133 | Z87: 1.795458571
U88: 13:30:00 | V88: 0.0102 | W88: 0.003698 | X88: 0.01933 | Y88: 0.008520812988 | Z88: 1.70423383
U89: 13:40:00 | V89: 0.00938 | W89: 0.002878 | X89: 0.01933 | Y89: 0.008022766113 | Z89: 1.604558039
U90: 13:50:00 | V90: 0.0087 | W90: 0.002198 | X90: 0.01933 | Y90: 0.0075 | Z90: 1.500090377
U91: 14:00:00 | V91: 0.00818 | W91: 0.001678 | X91: 0.01933 | Y91: 0.006970825195 | Z91: 1.394142126
U92: 14:10:00 | V92: 0.00765 | W92: 0.001148 | X92: 0.01933 | Y92: 0.006441650391 | Z92: 1.28827737
U93: 14:20:00 | V93: 0.00728 | W93: 0.000778 | X93: 0.01933 | Y93: 0.005919799805 | Z93: 1.183922868
U94: 14:30:00 | V94: 0.0069 | W94: 0.000398 | X94: 0.01933 | Y94: 0.005411682129 | Z94: 1.082368048
U95: 14:40:00 | V95: 0.00652 | W95: 1.8e-05 | X95: 0.01933 | Y95: 0.004916381836 | Z95: 0.9832474087
U96: 14:50:00 | V96: 0.00622 | W96: 0 | X96: 0.01933 | Y96: 0.004448547363 | Z96: 0.8897781167
U97: 15:00:00 | V97: 0.006 | W97: 0 | X97: 0.01933 | Y97: 0.00402557373 | Z97: 0.8050369058
U98: 15:10:00 | V98: 0.00578 | W98: 0 | X98: 0.01933 | Y98: 0.003641967773 | Z98: 0.7283614907
U99: 15:20:00 | V99: 0.00555 | W99: 0 | X99: 0.01933 | Y99: 0.00329498291 | Z99: 0.6589919839
U100: 15:30:00 | V100: 0.00532 | W100: 0 | X100: 0.01933 | Y100: 0.002980957031 | Z100: 0.5962325845
U101: 15:40:00 | V101: 0.00518 | W101: 0 | X101: 0.01933 | Y101: 0.002697143555 | Z101: 0.5394515786
U102: 15:50:00 | V102: 0.00495 | W102: 0 | X102: 0.01933 | Y102: 0.002440795898 | Z102: 0.4880721841
U103: 16:00:00 | V103: 0.0048 | W103: 0 | X103: 0.01933 | Y103: 0.002208251953 | Z103: 0.4415817056
U104: 16:10:00 | V104: 0.00465 | W104: 0 | X104: 0.01933 | Y104: 0.001997680664 | Z104: 0.3995223794
U105: 16:20:00 | V105: 0.0045 | W105: 0 | X105: 0.01933 | Y105: 0.001807250977 | Z105: 0.361473063
U106: 16:30:00 | V106: 0.00443 | W106: 0 | X106: 0.01933 | Y106: 0.001635131836 | Z106: 0.3270492349
U107: 16:40:00 | V107: 0.00427 | W107: 0 | X107: 0.01933 | Y107: 0.001479492187 | Z107: 0.2959029947
U108: 16:50:00 | V108: 0.0042 | W108: 0 | X108: 0.01933 | Y108: 0.001338500977 | Z108: 0.267723063
U109: 17:00:00 | V109: 0.00405 | W109: 0 | X109: 0.01933 | Y109: 0.001211242676 | Z109: 0.2422256265
U110: 17:10:00 | V110: 0.00398 | W110: 0 | X110: 0.01933 | Y110: 0.00109588623 | Z110: 0.2191543374
U111: 17:20:00 | V111: 0.0039 | W111: 0 | X111: 0.01933 | Y111: 0.0009915161133 | Z111: 0.198280314
U112: 17:30:00 | V112: 0.00382 | W112: 0 | X112: 0.01933 | Y112: 0.0008972167969 | Z112: 0.1793929849
U113: 17:40:00 | V113: 0.00368 | W113: 0 | X113: 0.01933 | Y113: 0.0008111572266 | Z113: 0.1623092447
U114: 17:50:00 | V114: 0.0036 | W114: 0 | X114: 0.01933 | Y114: 0.0007342529297 | Z114: 0.1468551431
U115: 18:00:00 | V115: 0.00353 | W115: 0 | X115: 0.01933 | Y115: 0.0006646728516 | Z115: 0.1328658853
U116: 18:10:00 | V116: 0.00345 | W116: 0 | X116: 0.01933 | Y116: 0.0006005859375 | Z116: 0.1202132974
U117: 18:20:00 | V117: 0.00337 | W117: 0 | X117: 0.01933 | Y117: 0.0005438232422 | Z117: 0.1087692056
U118: 18:30:00 | V118: 0.00337 | W118: 0 | X118: 0.01933 | Y118: 0.0004916381836 | Z118: 0.09841459133
U119: 18:40:00 | V119: 0.0033 | W119: 0 | X119: 0.01933 | Y119: 0.0004449462891 | Z119: 0.0890487466
U120: 18:50:00 | V120: 0.00322 | W120: 0 | X120: 0.01933 | Y120: 0.0004028320313 | Z120: 0.0805709634
U121: 19:00:00 | V121: 0.00315 | W121: 0 | X121: 0.01933 | Y121: 0.0003643798828 | Z121: 0.07289884426
U122: 19:10:00 | V122: 0.00308 | W122: 0 | X122: 0.01933 | Y122: 0.0003295898437 | Z122: 0.065959147
U123: 19:20:00 | V123: 0.00308 | W123: 0 | X123: 0.01933 | Y123: 0.0002984619141 | Z123: 0.05967862942
U124: 19:30:00 | V124: 0.003 | W124: 0 | X124: 0.01933 | Y124: 0.0002700805664 | Z124: 0.05399320461
U125: 19:40:00 | V125: 0.00292 | W125: 0 | X125: 0.01933 | Y125: 0.0002444458008 | Z125: 0.04884794094
U126: 19:50:00 | V126: 0.00292 | W126: 0 | X126: 0.01933 | Y126: 0.0002206420898 | Z126: 0.04419706203
U127: 20:00:00 | V127: 0.00285 | W127: 0 | X127: 0.01933 | Y127: 0.0001995849609 | Z127: 0.03999479153
U128: 20:10:00 | V128: 0.00285 | W128: 0 | X128: 0.01933 | Y128: 0.0001812744141 | Z128: 0.03618619778
U129: 20:20:00 | V129: 0.00278 | W129: 0 | X129: 0.01933 | Y129: 0.0001638793945 | Z129: 0.03273465969
U130: 20:30:00 | V130: 0.00278 | W130: 0 | X130: 0.01933 | Y130: 0.0001483154297 | Z130: 0.02961271145
U131: 20:40:00 | V131: 0.0027 | W131: 0 | X131: 0.01933 | Y131: 0.0001336669922 | Z131: 0.02679288723
U132: 20:50:00 | V132: 0.0027 | W132: 0 | X132: 0.01933 | Y132: 0.0001208496094 | Z132: 0.02424772121
U133: 21:00:00 | V133: 0.00262 | W133: 0 | X133: 0.01933 | Y133: 0.0001098632812 | Z133: 0.02194059231
U134: 21:10:00 | V134: 0.00262 | W134: 0 | X134: 0.01933 | Y134: 9.887695312e-05 | Z134: 0.01985318996
U135: 21:20:00 | V135: 0.00255 | W135: 0 | X135: 0.01933 | Y135: 8.972167969e-05 | Z135: 0.01796720364
U136: 21:30:00 | V136: 0.00255 | W136: 0 | X136: 0.01933 | Y136: 8.148193359e-05 | Z136: 0.0162551675
U137: 21:40:00 | V137: 0.00247 | W137: 0 | X137: 0.01933 | Y137: 7.32421875e-05 | Z137: 0.01470792629
U138: 21:50:00 | V138: 0.00247 | W138: 0 | X138: 0.01933 | Y138: 6.683349609e-05 | Z138: 0.01330716946
U139: 22:00:00 | V139: 0.0024 | W139: 0 | X139: 0.01933 | Y139: 6.042480469e-05 | Z139: 0.01203458645
U140: 22:10:00 | V140: 0.0024 | W140: 0 | X140: 0.01933 | Y140: 5.401611328e-05 | Z140: 0.01089017727
U141: 22:20:00 | V141: 0.0024 | W141: 0 | X141: 0.01933 | Y141: 4.943847656e-05 | Z141: 0.00985563137
U142: 22:30:00 | V142: 0.00233 | W142: 0 | X142: 0.01933 | Y142: 4.486083984e-05 | Z142: 0.008912638206
U143: 22:40:00 | V143: 0.00233 | W143: 0 | X143: 0.01933 | Y143: 4.028320313e-05 | Z143: 0.008061197777
U144: 22:50:00 | V144: 0.00233 | W144: 0 | X144: 0.01933 | Y144: 3.662109375e-05 | Z144: 0.007292154808
U145: 23:00:00 | V145: 0.00225 | W145: 0 | X145: 0.01933 | Y145: 3.295898437e-05 | Z145: 0.006596354027
U146: 23:10:00 | V146: 0.00225 | W146: 0 | X146: 0.01933 | Y146: 3.021240234e-05 | Z146: 0.005964640159
U147: 23:20:00 | V147: 0.00225 | W147: 0 | X147: 0.01933 | Y147: 2.655029297e-05 | Z147: 0.005397013206
U148: 23:30:00 | V148: 0.00217 | W148: 0 | X148: 0.01933 | Y148: 2.471923828e-05 | Z148: 0.004884317894
U149: 23:40:00 | V149: 0.00217 | W149: 0 | X149: 0.01933 | Y149: 2.197265625e-05 | Z149: 0.004417398948
U150: 23:50:00 | V150: 0.00217 | W150: 0 | X150: 0.01933 | Y150: 2.014160156e-05 | Z150: 0.00399625637
U151: 1 | V151: 0.0021 | W151: 0 | X151: 0.01933 | Y151: 1.831054687e-05 | Z151: 0.003611734886
